Cogmind - Beta 15 @@@ ROGUE MODE // 2025.06.05 @ 09:31:25 Player: VT-MNC Result: Establishing 0b11! Performance ------------- Evolutions (9) 4500 Regions Visited (38) 7600 Robots Destroyed (472) 2360 Value Destroyed (36482) 36482 Prototype IDs (379) 7580 Alien Tech Used (10) 2000 Bonus (87174) 87174 TOTAL SCORE: 147696 Bonus ------- Triggered High Security 1000 High Alert Combat Kills 10133 Follower Combat Kills 19449 Entered Garrisons 2400 Used RIF Installer 7000 Network Hubs Disabled 200 Built Enhanced Grunts 300 A7 Reached Mainframe 300 Met R17 at Cetus 500 Met R17 at Research 2000 Recovered Sigix Corpse 2000 Destroyed MAIN.C Guards 500 Met MAIN.C 5000 Hacked MAIN.C 300 Destroyed MAIN.C Shell 5000 Destroyed MAIN.C 10000 Met Architect 300 Started Test 138-B 500 Destroyed A8 300 Destroyed A6 400 Destroyed A5 500 Destroyed A4 700 Destroyed A3 800 Destroyed A2 1000 Destroyed Architect 15000 Win 3000 Friendly Fire -1408 Cogmind --------- Core Integrity 862/1600 Matter 270/300 Energy 590/600 System Corruption 4% Temperature Cool (0) Movement Walking (85) Location 0b11 Command Parts ------- > --- POWER (3) -------- Graviton Reactor Zero-point Reactor Concept Zero-point Core > --- PROPULSION (6) --- Experimental Biometal Leg Experimental Biometal Leg Concept Biometal Exoskeleton Concept Biometal Exoskeleton (fused) > --- UTILITY (13) ----- 2N-1CE's Frost Array Concept Antigrav Storage Unit Concept Networked Targeting System Concept Weapon Articulator Experimental Core Analyzer Improved Armor Integrity Analyzer Precision Energy Filter Experimental Weapon Cycler Concept Phase Shift Module Experimental Powered Armor Experimental Powered Armor Experimental Powered Armor AEGIS Remote Shield > --- WEAPON (3) ------- Concept Plasma Driver Improved Potential Cannon > --- INVENTORY (25) --- Concept Zero-point Core Experimental Biometal Leg Experimental Biometal Leg Experimental Cooling System Concept Chromion Battery (800) Experimental Matter Compressor (500) Experimental Kinecellerator Quantum Capacitor Concept Phase Shift Module Experimental Weapon Shielding Experimental Powered Armor Graphene Brace Experimental Focal Shield Concept Matter Streamer Gatling Beam Compact HERF Cannon A3's Sniper Rifle Hypervelocity Linear Accelerator Perforator Concept Rapid Grenade Launcher Sigix Broadsword Sigix Corpse Peak State ------------ > --- POWER ------------ Experimental Antimatter Reactor Concept Zero-point Core Concept Zero-point Core > --- PROPULSION ------- Concept Biometal Exoskeleton Concept Biometal Exoskeleton Concept Biometal Exoskeleton > --- UTILITY ---------- 2N-1CE's Frost Array Concept Antigrav Storage Unit Concept Networked Targeting System Concept Weapon Articulator Quantum Capacitor SHELL Armor AEGIS Remote Shield Concept Antimissile System Relay Coupler [Hunter] Experimental System Purifier > --- WEAPON ----------- Concept Plasma Driver Sigix Broadsword > --- INVENTORY -------- Experimental Biometal Leg Experimental Biometal Leg Experimental Cooling System Concept Chromion Battery Advanced Particle Accelerator Experimental Kinecellerator Experimental Weapon Cycler Experimental Reaction Control System Concept Phase Shift Module Concept Phase Shift Module Graphene Brace Concept Matter Streamer Transdimensional Reconstructor Concept Plasma Driver Improved Potential Cannon Graviton Cannon Graviton Cannon Perforator Concept Heavy Railcannon Hellfire Missile Launcher Concept Rapid Grenade Launcher Advanced Remote Datajack [Rating: 307] Favorites ----------- Power Concept Zero-point Core Engine Ion Engine Power Core Concept Zero-point Core Reactor Quantum Reactor Propulsion Light Treads Treads Light Treads Leg Concept Biometal Exoskeleton Wheel Armored Huge Wheel Hover Unit Gravmag System Flight Unit Improved VTOL Module Utility Huge Storage Unit Device Seismic Detector Storage Huge Storage Unit Processor Advanced Targeting Computer Hackware Relay Coupler [NC] Protection Powered Armor Weapon Heavy Mass Driver Energy Gun Improved EM Shotgun Energy Cannon Concept Plasma Driver Ballistic Gun Enhanced Autogun Ballistic Cannon Heavy Mass Driver Launcher Grenade Launcher Special Weapon Remote Datajack Impact Weapon Heavy Flail Slashing Weapon Sigix Broadsword Piercing Weapon Force Lance Build | -11 -10 -10 -8 -8 -7 -7 -7 -7 -6 -6 -6 -6 -5 -5 -5 -5 -5 -5 -5 -5 -5 -5 -4 -4 -4 -4 -3 -3 -3 -2 -2 -2 -2 -1 -1 -1 -1 -1 ------- Run | Yrd Mat Sub Mat Gar Fac Gar Fac Gar Fac Gar Fac Gar Fac Was Fac Gar Fac Ext Cet Arc Hub Gar Fac Gar Fac Gar Res Qua Frg Res Gar Tes Gar Acc Gar Acc Com Ac0 Slots Evolved 18 | . . . 4 . 2 . . . 2 . . . 2 . . . . . . . . . 2 . . . 2 . . 2 . . . 2 . . . . Power 2 | . . . . . . . . . . . . . . . . . . . . . . . 1 . . . . . . . . . . 1 . . . . Propulsion 4 | . . . 2 . . . . . . . . . . . . . . . . . . . . . . . 2 . . . . . . . . . . . Utility 11 | . . . 2 . 2 . . . 1 . . . 2 . . . . . . . . . 1 . . . . . . 2 . . . 1 . . . . Weapon 1 | . . . . . . . . . 1 . . . . . . . . . . . . . . . . . . . . . . . . . . . . . Parts Attached 306 | 1 15 16 46 11 10 2 9 6 10 7 7 10 1 3 1 4 13 2 7 2 3 7 2 4 3 2 5 9 24 1 4 14 1 1 1 . 19 23 Power 31 | . 1 1 5 2 2 . 1 . 3 1 2 . . 1 . . . . 1 1 . 1 1 . . . 1 . 3 . . 1 . . . . 2 1 Engine 11 | . 1 1 2 2 1 . . . 2 1 1 . . . . . . . . . . . . . . . . . . . . . . . . . . . Core 9 | . . . 3 . 1 . 1 . 1 . 1 . . . . . . . . . . . . . . . . . 1 . . 1 . . . . . . Reactor 11 | . . . . . . . . . . . . . . 1 . . . . 1 1 . 1 1 . . . 1 . 2 . . . . . . . 2 1 Propulsion 54 | . 3 3 11 6 3 . 2 1 1 . 1 3 . 2 . 1 . . 2 . . 1 . . . . 2 1 5 . . 1 . . . . 1 4 Treads 35 | . 2 3 9 6 3 . 2 1 . . . . . 2 . 1 . . 2 . . 1 . . . . 1 1 . . . . . . . . 1 . Leg 8 | . . . . . . . . . . . . . . . . . . . . . . . . . . . . . 5 . . . . . . . . 3 Wheel 5 | . 1 . 1 . . . . . 1 . . 1 . . . . . . . . . . . . . . . . . . . 1 . . . . . . Hover 2 | . . . . . . . . . . . 1 1 . . . . . . . . . . . . . . . . . . . . . . . . . . Flight 4 | . . . 1 . . . . . . . . 1 . . . . . . . . . . . . . . 1 . . . . . . . . . . 1 Utility 139 | 1 3 3 12 2 4 1 4 4 2 6 2 4 1 . . 2 12 2 2 1 2 3 1 3 2 2 1 6 14 1 3 4 1 1 1 . 13 13 Device 61 | 1 . . 6 1 . . . 2 1 2 . 2 . . . . 9 1 1 1 1 . . 1 1 1 . 3 10 . . 3 . . . . 6 8 Storage 5 | . 1 . . . . . . . . . . . . . . . . . . . . . . . . . . . 3 . . 1 . . . . . . Processor 11 | . . . 1 . . . 1 . . . 2 . . . . . 1 1 . . . 1 . . 1 . . . 1 . . . . . . . 2 . Hackware 38 | . . . . . 3 1 2 2 1 4 . 1 1 . . 2 2 . . . 1 2 1 2 . 1 1 3 . 1 3 . 1 1 1 . 1 . Protection 24 | . 2 3 5 1 1 . 1 . . . . 1 . . . . . . 1 . . . . . . . . . . . . . . . . . 4 5 Artifact . | . . . . . . . . . . . . . . . . . . . . . . . . . . . . . . . . . . . . . . . Weapon 82 | . 8 9 18 1 1 1 2 1 4 . 2 3 . . 1 1 1 . 2 . 1 2 . 1 1 . 1 2 2 . 1 8 . . . . 3 5 Energy Gun 12 | . 1 1 4 . . . . . . . . . . . 1 . . . 1 . . 1 . . . . . . . . . 1 . . . . . 2 Energy Cannon 14 | . 1 2 . . . 1 . . 2 . 1 . . . . . . . 1 . . . . . 1 . . . 1 . . 3 . . . . 1 . Ballistic Gun 17 | . 3 4 7 1 . . . . . . . . . . . . . . . . . . . . . . . . . . . 1 . . . . . 1 Ballistic Cannon 14 | . . . 4 . . . . . 1 . 1 2 . . . 1 . . . . . 1 . . . . . 1 1 . . . . . . . 1 1 Launcher 8 | . 1 1 2 . . . 1 1 . . . . . . . . . . . . . . . . . . . . . . . 1 . . . . . 1 Special Weapon 11 | . 2 . . . 1 . . . 1 . . 1 . . . . 1 . . . 1 . . 1 . . 1 . . . 1 1 . . . . . . Impact Weapon 4 | . . 1 1 . . . 1 . . . . . . . . . . . . . . . . . . . . . . . . 1 . . . . . . Slashing Weapon 1 | . . . . . . . . . . . . . . . . . . . . . . . . . . . . 1 . . . . . . . . . . Piercing Weapon 1 | . . . . . . . . . . . . . . . . . . . . . . . . . . . . . . . . . . . . . 1 . Special Melee Weapon . | . . . . . . . . . . . . . . . . . . . . . . . . . . . . . . . . . . . . . . . Unidentified Prototypes 52 | . . . 7 . . . . . . . 2 . 1 . . . . . 3 . . . . . . . 1 1 15 . . 10 . 1 . . 3 8 Corrupted Parts 6 | . . . . 6 . . . . . . . . . . . . . . . . . . . . . . . . . . . . . . . . . . System Corruption 22 | . . . . 22 . . . . . . . . . . . . . . . . . . . . . . . . . . . . . . . . . . Parts Lost 23 | . 2 4 5 5 . . . . 1 . . . 1 . . . . . . . . . . . . . . . . . . . . . . . . 5 Power 5 | . . 1 1 1 . . . . 1 . . . . . . . . . . . . . . . . . . . . . . . . . . . . 1 Propulsion 8 | . . 1 3 3 . . . . . . . . . . . . . . . . . . . . . . . . . . . . . . . . . 1 Utility 5 | . . 1 . 1 . . . . . . . . . . . . . . . . . . . . . . . . . . . . . . . . . 3 Weapon 5 | . 2 1 1 . . . . . . . . . 1 . . . . . . . . . . . . . . . . . . . . . . . . . Highest Loss Streak 4 | . 1 4 2 2 . . . . 1 . . . 1 . . . . . . . . . . . . . . . . . . . . . . . . 2 To Critical Strikes . | . . . . . . . . . . . . . . . . . . . . . . . . . . . . . . . . . . . . . . . Average Backups 22 | 7 17 24 24 24 24 25 24 24 24 23 22 23 22 22 22 22 22 22 22 21 21 22 20 22 23 22 21 22 22 22 23 22 20 19 20 21 21 19 Power . | 1 . . . . . . . . . . . . . . . . . . . . . . . . 1 1 . . . 2 2 1 1 . . . . 1 Propulsion 2 | 4 4 5 5 3 3 3 2 3 3 3 3 1 . . 1 1 . 1 1 1 1 1 1 1 1 1 . . . . . . . . . . 1 . Utility 12 | . 6 9 8 10 11 12 12 12 12 12 14 15 17 16 15 14 15 15 15 15 15 17 16 16 17 16 17 16 15 13 15 14 13 13 14 15 12 11 Weapon 6 | 1 5 8 10 9 9 9 8 8 8 6 4 5 5 5 6 7 6 5 5 4 5 3 3 3 3 3 3 3 4 5 4 4 4 4 4 4 5 5 Tool/Special . | . . . . . . . . . . . . . . . . . . . . . . . . . . . . . . . . . . . . . . . Unused Backups 83 | 6 5 6 10 1 1 2 2 1 6 . 3 6 . 2 . 5 2 . 1 1 . 4 1 . . . . 3 4 . . 1 1 . . . 4 5 Power 4 | 1 2 . . . . . . . . . . . . . . . . . . . . . . . . . . . 1 . . . . . . . . . Propulsion 15 | 2 2 3 1 . . . . . 1 . . 1 . 1 . . . . 1 . . 1 1 . . . . 1 . . . . . . . . . . Utility 39 | 1 . 1 5 1 1 2 1 1 1 . 2 4 . 1 . 2 2 . . 1 . 3 . . . . . 1 3 . . . 1 . . . 1 4 Weapon 25 | 2 1 2 4 . . . 1 . 4 . 1 1 . . . 3 . . . . . . . . . . . 1 . . . 1 . . . . 3 1 Tool/Special . | . . . . . . . . . . . . . . . . . . . . . . . . . . . . . . . . . . . . . . . Average Slot Usage (%) 88 | . 99 99 96 96 98 99 99 99 95 93 93 89 83 78 78 80 81 82 81 81 82 82 83 84 84 84 79 80 79 77 78 78 79 79 80 80 74 85 Engine 3 | . 14 13 2 6 6 7 5 . 1 6 6 5 5 4 . . . . . . . . . . . . . . . . . . . . . . . . Core 2 | . . . 6 1 . . 1 7 4 . . . . . . . . . . . . . . . . . . . . 4 4 4 4 8 8 8 6 4 Reactor 3 | . . . . . . . . . . . . . . . 5 5 5 5 5 4 5 5 9 10 10 10 9 9 8 4 4 4 4 4 4 4 5 8 Treads 14 | . 18 28 31 32 30 30 30 30 19 13 13 12 10 5 5 5 11 11 11 11 11 11 10 10 10 10 13 14 7 . . . . . . . . . Leg 3 | . 4 . . . . . . . . . . . . . . . . . . . . . . . . . . . 6 13 13 13 13 12 12 12 12 14 Wheel 1 | . 5 . 4 2 . . . . 3 6 6 5 5 5 5 4 . . . . . . . . . . . . . . . . . . . . . . Device 10 | . 5 8 15 5 10 5 4 6 6 6 6 5 5 5 5 1 7 5 5 5 5 4 8 6 5 6 3 5 8 24 17 17 18 16 16 16 26 27 Storage 6 | . 14 14 9 9 7 7 7 7 6 6 6 5 5 5 5 5 5 5 5 5 5 5 5 5 5 5 4 4 4 4 4 4 4 4 4 4 4 4 Processor 3 | . . . 1 9 7 7 7 7 6 6 6 5 5 5 5 5 5 5 5 5 5 5 5 5 5 5 4 4 3 . . . . . . . 1 8 Hackware 16 | . . . . . 4 21 22 16 19 20 20 19 20 21 21 27 29 29 29 29 29 30 26 27 31 31 28 29 27 17 25 26 26 27 28 28 4 . Protection 5 | . 8 5 8 11 13 2 2 5 6 5 5 6 10 10 10 9 3 4 5 4 5 4 5 7 5 3 4 2 1 . . . . . . . 5 11 Energy Cannon 3 | . 12 13 2 . . 1 3 6 6 10 8 4 . . . . . . 2 3 . . . . . . . . . 4 1 . 2 1 1 1 4 3 Ballistic Gun 2 | . 11 9 4 7 10 5 1 . . . . . . . . . . . . . . . . . . . . . . . . . . . . . . 1 Ballistic Cannon 3 | . . . 4 5 . . 3 2 5 6 6 6 10 10 10 6 5 5 4 5 5 5 5 4 5 5 4 3 . . . . . . . . . 1 Special Weapon 2 | . 1 2 . . 2 6 5 3 4 1 4 4 5 4 5 4 5 4 2 1 5 4 5 5 4 3 3 4 3 . 2 3 1 2 2 2 . . Peak Build Rating 307 | 8 9 14 33 31 44 47 46 49 64 66 65 86 90 98 100 104 91 95 109 109 111 120 132 134 140 141 157 178 258 266 257 262 265 280 280 281 307 302 Average Rating 115 | 6 8 11 28 29 35 44 43 46 57 64 62 70 89 96 98 89 87 91 102 106 110 115 128 132 136 136 152 162 202 260 253 254 258 277 274 277 295 295 On Entrance 123 | 6 8 9 13 30 31 44 46 42 48 62 65 64 86 90 98 99 87 89 93 106 109 111 120 132 134 136 139 154 178 253 257 252 257 261 280 278 281 282 Naked Turns . | . . . . . . . . . . . . . . . . . . . . . . . . . . . . . . . . . . . . . . . Heaviest Build 181 | 11 94 100 121 111 130 130 126 115 139 139 130 149 150 157 154 173 134 138 145 142 139 135 171 171 161 161 175 167 166 102 94 92 105 109 116 116 181 175 Greatest Support 240 | 20 40 40 80 80 80 80 82 80 80 40 28 40 28 28 28 140 140 140 160 160 160 160 160 160 160 160 240 240 240 174 174 174 174 174 174 174 174 174 Greatest Overweight (x) 9 | . 9 2 6 6 1 1 1 1 4 4 4 5 5 5 5 6 . . . . . . 1 1 1 1 1 . 1 . . . . . . . 1 1 Average Overweight (x) 1 | . 4 2 1 2 1 1 1 1 2 3 4 4 5 5 5 4 . . . . . . . . . . . . . . . . . . . . . . Largest Inventory Capacity 25 | 8 25 25 25 25 25 25 25 25 25 25 25 25 25 25 25 25 25 25 25 25 25 25 25 25 25 25 25 25 25 25 25 25 25 25 25 25 25 25 Average Capacity 24 | 8 22 25 25 25 25 25 25 25 25 25 25 25 25 25 25 25 25 25 25 25 25 25 25 25 25 25 25 25 25 25 25 25 25 25 25 25 25 25 Most Carried 25 | 8 25 25 25 25 25 25 25 25 25 25 25 25 24 25 25 25 25 25 25 25 25 25 25 25 25 25 25 25 25 25 25 25 25 25 25 25 25 25 Average Carried 23 | 7 17 24 24 23 24 24 24 24 24 24 24 24 23 24 24 24 24 25 24 24 24 24 22 24 25 24 22 24 24 23 24 24 24 23 24 25 23 22 Final Capacity 25 | 8 25 25 25 25 25 25 25 25 25 25 25 25 25 25 25 25 25 25 25 25 25 25 25 25 25 25 25 25 25 25 25 25 25 25 25 25 25 25 Final Carried 25 | 8 25 25 25 25 25 25 25 25 25 25 25 25 23 25 25 25 25 25 25 25 25 25 22 25 25 25 22 25 25 25 25 25 25 23 25 25 25 25 Class Distribution -------------------- 22% | Mutant 14% | Commander-Tank 13% | Botlord-Tank 13% | Scavenger-Mutant 9% | Botlord-Mutant 6% | Commander-Mutant 6% | Commander-Gunner 6% | Bothacker-Gunner 3% | Bothacker-Mutant Dominant Class ---------------- Mutant | -10/Materials Mutant | -10/Subcaves Scavenger-Mutant | -8/Materials Scavenger-Mutant | -8/Garrison Scavenger-Mutant | -7/Factory Bothacker-Mutant | -7/Garrison Mutant | -7/Factory Mutant | -7/Garrison Bothacker-Gunner | -6/Factory Commander-Gunner | -6/Garrison Bothacker-Gunner | -6/Factory Commander-Gunner | -6/Garrison Commander-Gunner | -5/Factory Botlord-Tank | -5/Waste Botlord-Tank | -5/Factory Botlord-Tank | -5/Garrison Botlord-Tank | -5/Factory Commander-Tank | -5/Extension Commander-Tank | -5/Cetus Commander-Tank | -5/Archives Commander-Tank | -5/Hub_04(d) Commander-Tank | -5/Garrison Botlord-Tank | -4/Factory Botlord-Tank | -4/Garrison Commander-Tank | -4/Factory Commander-Tank | -4/Garrison Botlord-Tank | -3/Research Botlord-Tank | -3/Quarantine Botlord-Mutant | -3/Protoforge Botlord-Mutant | -2/Research Botlord-Mutant | -2/Garrison Botlord-Mutant | -2/Testing Botlord-Mutant | -2/Garrison Commander-Mutant | -1/Access Commander-Mutant | -1/Garrison Commander-Mutant | -1/Access Commander-Mutant | -1/Command Scavenger-Mutant | -1/Access_0 Resources | -11 -10 -10 -8 -8 -7 -7 -7 -7 -6 -6 -6 -6 -5 -5 -5 -5 -5 -5 -5 -5 -5 -5 -4 -4 -4 -4 -3 -3 -3 -2 -2 -2 -2 -1 -1 -1 -1 -1 ----------- Run | Yrd Mat Sub Mat Gar Fac Gar Fac Gar Fac Gar Fac Gar Fac Was Fac Gar Fac Ext Cet Arc Hub Gar Fac Gar Fac Gar Res Qua Frg Res Gar Tes Gar Acc Gar Acc Com Ac0 Matter Collected 23042 | 217 445 457 1919 898 251 233 409 865 400 555 228 607 78 349 50 1234 234 588 288 100 429 954 242 955 183 779 426 605 1455 . 709 780 240 90 470 60 1483 2777 Remotely 4171 | . . . 209 615 128 . . 158 . . . . . . . 187 . 106 . . . . 152 235 . 377 . 65 373 . . 310 . . . . 469 787 Salvage Created 23379 | 136 817 371 1905 558 128 99 202 855 595 497 301 619 . 274 . 336 35 392 107 284 286 588 175 306 . 247 268 137 870 . 1222 523 1772 . 881 87 3082 4424 Parts 1135 | 15 42 30 125 25 3 5 14 48 36 20 8 31 . 4 . 14 3 5 5 11 11 34 14 22 . 17 9 12 75 . 61 30 68 . 38 2 80 218 Haulers Intercepted 10 | . 2 . 5 . . . . . . . 1 . . . . . . . . . 1 . . . . . 1 . . . . . . . . . . . Recyclers Shooed 8 | . 3 . 3 . . . . . 2 . . . . . . . . . . . . . . . . . . . . . . . . . . . . . Parts Field Recycled . | . . . . . . . . . . . . . . . . . . . . . . . . . . . . . . . . . . . . . . . Retrieved Matter . | . . . . . . . . . . . . . . . . . . . . . . . . . . . . . . . . . . . . . . . Parts Self-Destructed 12 | . . 12 . . . . . . . . . . . . . . . . . . . . . . . . . . . . . . . . . . . . Prevented . | . . . . . . . . . . . . . . . . . . . . . . . . . . . . . . . . . . . . . . . Kills | -11 -10 -10 -8 -8 -7 -7 -7 -7 -6 -6 -6 -6 -5 -5 -5 -5 -5 -5 -5 -5 -5 -5 -4 -4 -4 -4 -3 -3 -3 -2 -2 -2 -2 -1 -1 -1 -1 -1 ------- Run | Yrd Mat Sub Mat Gar Fac Gar Fac Gar Fac Gar Fac Gar Fac Was Fac Gar Fac Ext Cet Arc Hub Gar Fac Gar Fac Gar Res Qua Frg Res Gar Tes Gar Acc Gar Acc Com Ac0 Combat Hostiles Destroyed 379 | . 16 13 46 16 2 5 3 25 9 10 1 16 . 1 . 10 1 1 1 . 3 18 1 11 . 8 4 2 13 . 19 6 26 . 9 . 35 48 Melee 11 | . . . . . . . . . . . . . . . . . . . . . . . . . . 1 . . 7 . 1 . 1 . 1 . . . Guns 27 | . 5 1 10 4 2 1 . 2 . . . . . . . . . . . . . . . . . . . . . . . . . . . . . 2 Cannons 237 | . 5 7 14 6 . . 3 11 2 9 1 14 . . . 10 1 1 . . 3 14 1 11 . 5 4 2 5 . 17 6 19 . 5 . 24 37 AOE 70 | . 6 5 22 6 . 4 . 11 7 . . 2 . . . . . . . . . 4 . . . 2 . . . . . . . . . . . 1 Classes Destroyed 28 | 2 7 3 6 1 . . . 1 1 . . . . 1 . . . 1 . . . 1 . . . 1 1 . . . . 1 . . . . 1 . Worker 13 | . 1 . 3 . 2 . 1 . 2 . . . . . . . . . . . . . . . . . . 2 . . . 1 . . . . 1 . Builder 8 | . . . 3 . 1 . 1 . 1 . . . . . . . . 1 . . . . . . . . . . . . . 1 . . . . . . Tunneler 8 | 4 1 . 3 . . . . . . . . . . . . . . . . . . . . . . . . . . . . . . . . . . . Hauler 10 | . 2 . 5 . . . . . . . 1 . . . . . . . . . 1 . . . . . 1 . . . . . . . . . . . Recycler 16 | 1 3 . 2 . . . . . 3 . 1 . . . . . . 3 . . . . 1 . . . . . . . . . . . . . 2 . Mechanic 2 | . 1 . 1 . . . . . . . . . . . . . . . . . . . . . . . . . . . . . . . . . . . Operator 11 | . 1 . . . 1 . . . . . . . . . . . . . . 8 . . . . . . . . . . . . . . . . 1 . Turret 2 | . . 2 . . . . . . . . . . . . . . . . . . . . . . . . . . . . . . . . . . . . Watcher 14 | . 2 . 4 1 . . . 1 1 . . . . . . . . . 1 . 1 . . . . . . . . . . . . . . . 3 . Swarmer 92 | . 11 6 17 7 . 4 . 4 7 . . 3 . . . 4 . . . . . 7 . 2 . 2 . . . . 6 . 7 . 1 . 4 . Cutter 8 | . . . . . . . . 3 . . . . . . . . . . . . . . . 5 . . . . . . . . . . . . . . Saboteur 5 | . . . . . . . . . . . . . . . . . . . . . . . . . . 3 . . . . 2 . . . . . . . Grunt 90 | . 5 . 14 3 2 1 . 11 . 9 1 9 . . . 4 . . . . . 3 . 1 . 3 1 . . . 3 2 7 . 3 . 8 . Brawler 4 | . . . 3 . . . . . . . . . . . . 1 . . . . . . . . . . . . . . . . . . . . . . Duelist 8 | . . . 2 . . . . . . . . 1 . . . . . . . . . . . . . . . . . . . . 3 . . . 2 . Protector 2 | . . . 1 . . . . . . . . . . . . . . . . . . . . . . . . . . . . . . . . . 1 . Researcher 1 | . . . . . . . . . . . . . . . . . . . . . . . . . . . . . . . . 1 . . . . . . Sentry 18 | . . . 8 . . . 1 1 . . . . . . . . . . . . 1 2 . . . . . . 1 . 2 . . . 1 . 1 . Demolisher 3 | . . . . . . . . . . . . . . . . . . . . . . . . . . . 2 . . . . . . . . . 1 . Specialist 5 | . . . . . . . . . . . . . . . . . . . . . . 1 . . . . . . . . . . 1 . . . 3 . Hunter 17 | . . . 1 4 . . . 3 . . . . . . . . . . . . . . . . . . . . . . 3 . 2 . . 1 3 . Programmer 58 | . . . . 2 . . 2 3 1 1 . 3 . . . 2 1 . . . 1 4 . 2 . 2 1 2 6 . 2 4 7 . 6 . 6 . Heavy 2 | . . . . . . . . . 1 . . . . . . . . . . . . . 1 . . . . . . . . . . . . . . . Behemoth 6 | . . . . . . . . . . . . . . . . . . 1 . . 1 1 . 1 . . . . . . 1 . . . . . 1 . Compactor 1 | . . . . . . . . . . . . . . 1 . . . . . . . . . . . . . . . . . . . . . . . . Cetus Guard 1 | . . . . . . . . . . . . . . . . . . . 1 . . . . . . . . . . . . . . . . . . . M Guard 2 | . . . . . . . . . . . . . . . . . . . . . . . . . . . . . . . . . . . . . 2 . Enhanced Grunt 29 | . . . . . . . . . . . . . . . . . . . . . . . . . . . . . . . . . . . . . . 29 Enhanced Sentry 4 | . . . . . . . . . . . . . . . . . . . . . . . . . . . . . . . . . . . . . . 4 Enhanced Hunter 8 | . . . . . . . . . . . . . . . . . . . . . . . . . . . . . . . . . . . . . . 8 Decapitator 6 | . . . . . . . . . . . . . . . . . . . . . . . . . . . . . 6 . . . . . . . . . Combat Programmer 2 | . . . . . . . . . . . . . . . . . . . . . . . . . . . . . . . . . . . . . 2 . Striker 1 | . . . . . . . . . . . . . . . . . . . . . . . . . . . . . . . . . . . . . 1 . Artisan 1 | . . 1 . . . . . . . . . . . . . . . . . . . . . . . . . . . . . . . . . . . . Subdweller 7 | . . 7 . . . . . . . . . . . . . . . . . . . . . . . . . . . . . . . . . . . . Thug 1 | . . . . . . . . . . . . . . 1 . . . . . . . . . . . . . . . . . . . . . . . . Best Kill Streak 25 | 3 5 3 9 4 2 4 2 4 5 2 3 4 . 1 . 2 1 2 2 4 1 6 1 4 . 3 3 3 4 . 4 5 9 . 5 . 25 9 Combat Bots Only 23 | . 3 3 8 4 2 4 1 4 4 2 1 4 . 1 . 2 1 1 1 . 1 6 1 4 . 3 3 1 4 . 4 4 9 . 5 . 23 9 Max Kills in Single Turn 5 | 1 4 2 4 4 1 4 1 3 5 1 2 1 . 1 . 1 1 1 1 1 1 4 1 1 . 2 1 1 1 . 1 2 2 . 2 1 2 3 Gunslinging . | . . . . . . . . . . . . . . . . . . . . . . . . . . . . . . . . . . . . . . . Exploded 4 | . 3 2 3 4 . 4 . 3 4 . . 1 . . . . . . . . . 4 . . . 2 . . . . . . . . . . . 1 Melee 1 | . . . . . . . . . . . . . . . . . . . . . . . . . . 1 . . 1 . 1 . 1 . 1 . . . Uniques/NPCs Destroyed 9 | . . . . . . . . . . . . . . . . . . . . . . . . . . . . . . . . . . . . . 2 7 MAIN.C Shell (-1/Command) MAIN.C (-1/Command) A8 (-1/Access_0) A6 (-1/Access_0) A2 (-1/Access_0) A5 (-1/Access_0) A4 (-1/Access_0) Architect (-1/Access_0) A3 (-1/Access_0) Combat | -11 -10 -10 -8 -8 -7 -7 -7 -7 -6 -6 -6 -6 -5 -5 -5 -5 -5 -5 -5 -5 -5 -5 -4 -4 -4 -4 -3 -3 -3 -2 -2 -2 -2 -1 -1 -1 -1 -1 -------- Run | Yrd Mat Sub Mat Gar Fac Gar Fac Gar Fac Gar Fac Gar Fac Was Fac Gar Fac Ext Cet Arc Hub Gar Fac Gar Fac Gar Res Qua Frg Res Gar Tes Gar Acc Gar Acc Com Ac0 Hostile Shots Fired 2348 | . 74 148 189 125 22 15 59 157 40 65 20 49 . . . 64 5 7 16 4 5 32 19 73 4 39 35 40 73 . 51 21 40 5 51 3 80 718 Missed 933 | . 17 49 60 39 9 3 15 45 17 21 10 19 . . . 13 1 1 4 1 2 7 9 14 2 15 14 5 21 . 25 13 18 2 20 2 32 408 Intercepted 2 | . . . . . . . . . . . . . . . . . . . . . . . . . . . . . 1 . . . . . . . 1 . Hits 1415 | . 57 99 129 86 13 12 44 112 23 44 10 30 . . . 51 4 6 12 3 3 25 10 59 2 24 21 35 52 . 26 8 22 3 31 1 48 310 Melee 25 | . . . 1 . . . . 5 . . . . . . . . . . . . . . . 9 . . 1 . 8 . 1 . . . . . . . Projectile 1390 | . 57 99 128 86 13 12 44 107 23 44 10 30 . . . 51 4 6 12 3 3 25 10 50 2 24 20 35 44 . 25 8 22 3 31 1 48 310 AOE 5 | . . . . . . . 1 . . . . . . . . . . . . . . . . . . . 2 . . . . . . . . . 2 . Critical Strikes 77 | . 1 1 4 4 2 . . 6 . 1 . 1 . . . 3 . 1 4 . 1 2 . 5 . 1 . 5 10 . 2 1 . . 3 . 2 17 Actively Blocked 13 | . . . . . . . . . . . . . . . . . . . . . . . . 5 . . . . 7 . . . . . . . 1 . Part Disruptions 9 | . . . . . . . . . . . . . . . . . . . . . . . . . . . . . 2 . . . . . . . 3 4 Actively Blocked 3 | . . . . . . . . . . . . . . . . . . . . . . . . . . . . . . . . . . . . . 3 . Damage Taken 24554 | . 498 1148 1886 1177 189 219 341 1580 621 668 116 679 39 51 . 860 71 117 218 83 127 621 287 1390 99 604 564 597 1135 48 672 224 590 94 351 10 983 5597 Core 1556 | . 85 100 235 171 30 26 29 55 14 25 . 47 . 6 . 15 . . . . . 23 . . 25 55 . 12 31 . 28 . 14 . 14 . . 516 Absorbed by Shields 6245 | . . . 276 4 . 68 112 36 . . . . . . . . 10 34 102 . 29 . . 21 . . 203 277 435 . . . 117 . 305 10 432 3774 Reduced by Siege Mode 64 | . . . . . . . . . . . . . . . . 12 . . . . . 16 . 6 . . . 6 24 . . . . . . . . . Redirected to Shielding 1 | . . 1 . . . . . . . . . . . . . . . . . . . . . . . . . . . . . . . . . . . . Ignored by Resistances 858 | . . . . . 9 . . . 57 . . . . . . 127 . . . . . . . 88 . . . . . . 67 10 78 11 45 5 113 248 Regen/Repaired (Parts) 8664 | . 91 . . . 133 . . 705 241 436 59 407 . 7 . 270 . 58 69 . 43 125 12 829 . 438 104 579 504 . 593 144 322 63 256 . 714 1462 Core Remaining (%) 74 | 100 . 26 . 26 . . . 80 . . . 89 . . . . . . . . . 95 . . . 93 . . 89 . . . 97 . . . . 53 Volleys Fired 2155 | 13 84 50 139 40 15 16 45 91 59 56 16 60 4 19 2 78 21 55 26 40 35 79 19 94 16 71 34 50 71 . 81 55 79 4 65 33 164 276 Largest 3 | 2 2 2 2 2 2 2 2 2 3 3 3 3 1 2 1 2 1 1 1 1 1 1 1 1 1 1 1 1 1 . 1 1 1 1 1 1 1 2 Hottest 240 | 60 120 110 150 85 50 80 105 120 159 159 159 164 65 130 65 130 65 90 240 90 65 65 65 94 120 120 120 65 140 . 140 140 140 10 140 140 200 230 Shots Fired 2534 | 26 143 88 230 71 23 20 60 115 70 112 22 71 4 24 2 89 21 55 26 40 35 78 19 94 16 71 34 50 71 . 81 55 79 4 65 33 163 274 Gun 343 | 26 73 39 108 16 16 9 13 19 . 9 . . . . . . . . 1 . . . . . . . . . . . . . . . . . . 14 Cannon 1584 | . 48 40 103 53 . 3 16 79 47 92 12 50 3 14 1 62 5 27 23 36 25 58 8 69 7 50 11 32 26 . 40 17 68 . 28 25 146 260 Launcher 50 | . 5 4 19 2 . 1 . 9 . . . 3 . . . . . . 2 . . 1 . . . 1 3 . . . . . . . . . . . Special 557 | . 17 5 . . 7 7 31 8 23 11 10 18 1 10 1 27 16 28 . 4 10 19 11 25 9 20 20 18 45 . 41 38 11 4 37 8 17 . Kinetic 859 | 13 69 39 116 63 16 9 15 30 15 37 3 29 3 8 1 62 5 23 . . 25 58 8 67 . 45 10 32 . . . . . . . . 13 45 Thermal 994 | 13 69 45 27 . . 3 14 68 32 64 9 21 . 6 . . . 4 21 36 . . . . 7 5 1 . 26 . 40 17 68 . 28 25 116 229 Explosive 41 | . 5 4 15 2 . 1 . 9 . . . . . . . . . . . . . 1 . . . 1 3 . . . . . . . . . . . Electromagnetic 105 | . . . 72 6 . . . . . . . 3 . . . . . . 5 . . . . 2 . . . . . . . . . . . . 17 . Robot Hit Streak 80 | 5 10 19 21 13 6 6 18 16 10 11 7 19 4 5 1 13 5 12 1 6 9 12 6 19 14 8 19 14 11 . 28 65 80 26 27 7 55 57 Robot Miss Streak 6 | 2 5 2 4 3 2 1 3 3 3 3 3 3 2 1 2 3 1 1 2 3 2 3 2 1 . 1 1 2 2 . 1 . 1 . 1 1 1 6 Penetration Max 2 | . . . . . . . . . 1 . . . . . . . . . . . 1 1 1 1 . . . . . . 1 1 1 . 1 . 1 2 Secondary Targets 5 | . 2 . 1 . 2 . . . . . . . . . . . . . . . . . . . . . . . . . . . . . . . . . Max Gunslinging Chain 1 | . 1 . 1 . 1 . . . . . . . . . . . . . . . . . . . . . . . . . . . . . . . . . Capacitor 365 | . . . . . . . . . . . . . . . . . . . . . . . . . . . . . 4 . 40 17 59 . 28 25 133 59 Shots Hit Robots 1721 | 14 74 55 158 61 19 14 48 73 39 59 15 45 1 19 1 48 14 35 2 24 22 42 12 48 9 35 31 34 70 . 73 46 63 4 49 7 137 221 Core Hits 684 | 8 36 18 101 25 6 9 9 43 27 17 6 21 . 3 . 11 1 4 6 8 6 17 3 9 . 5 7 4 14 . 17 8 20 . 8 1 49 157 Critical Kills 68 | . . . . . . . . 1 . 1 1 . . 1 . . . . . 5 . . . . . . . . 1 . 1 . 6 . 3 1 12 35 Critical Parts Destroyed 32 | . . . 1 2 1 . 1 . . . . . . . . . . . . . . . . . . . . . . . . . . . . . 5 22 Critical Strikes 152 | . . 1 7 6 1 . 1 2 . 2 1 5 . 1 . 3 . 3 . 5 2 2 . 3 . 3 1 2 2 . 1 . 7 . 3 1 18 69 Meltdown 40 | . . . . . . . . 1 . 1 1 . . 1 . . . . . 5 . . . . . . . . 1 . 1 . 6 . 3 1 11 8 Destroy 70 | . . 1 1 . . . 1 . . . . . . . . . . . . . . . . . . . . . . . . . . . . . 6 61 Blast 37 | . . . 6 4 . . . 1 . 1 . 5 . . . 3 . 3 . . 2 2 . 3 . 3 1 2 . . . . . . . . 1 . Smash 3 | . . . . 2 1 . . . . . . . . . . . . . . . . . . . . . . . . . . . . . . . . . Sever 2 | . . . . . . . . . . . . . . . . . . . . . . . . . . . . . 1 . . . 1 . . . . . Melee Attacks 162 | . . 15 4 16 4 1 3 . 2 . . . . . . . . . . . . . . . . . . 3 52 . 10 9 7 1 20 . 11 4 Impact 45 | . . 15 4 16 4 1 3 . 2 . . . . . . . . . . . . . . . . . . . . . . . . . . . . . Slashing 117 | . . . . . . . . . . . . . . . . . . . . . . . . . . . . 3 52 . 10 9 7 1 20 . 11 4 Piercing . | . . . . . . . . . . . . . . . . . . . . . . . . . . . . . . . . . . . . . . . Sneak Attacks 21 | . . . . . 3 . 1 . . . . . . . . . . . . . . . . . . . . 3 5 . . 2 2 . 4 . 1 . Combat Hostiles 8 | . . . . . . . . . . . . . . . . . . . . . . . . . . . . . 4 . . 1 2 . 1 . . . Follow-up Attacks . | . . . . . . . . . . . . . . . . . . . . . . . . . . . . . . . . . . . . . . . Damage Inflicted 83595 | 145 1264 1522 5334 2423 508 424 632 2682 1728 1525 275 1977 . 619 . 1851 163 849 301 649 1026 2699 344 2138 . 1409 993 1708 3096 . 3023 1408 5486 . 2144 250 9114 23886 Guns 3828 | 145 377 413 1500 194 185 130 122 195 . 102 . . . . . . . . . . . . . . . . . . . . . . . . . . . 465 Cannons 65465 | . 557 819 1861 1101 . . 418 1281 761 1423 275 1684 . 619 . 1851 163 791 102 649 1026 2329 321 2138 . 1290 588 1220 1003 . 2653 969 5159 . 1305 250 8612 22247 Explosions 7857 | . 330 290 1942 275 . 294 . 1199 967 . . 293 . . . . . . 199 . . 370 . . . 119 405 . . . . . . . . . . 1174 Melee 6309 | . . . . 853 323 . 75 . . . . . . . . . . . . . . . . . . . . 488 2093 . 370 439 327 . 839 . 502 . Ramming 136 | . . . 31 . . . 17 7 . . . . . . . . . 58 . . . . 23 . . . . . . . . . . . . . . . Kinetic 21778 | 44 354 413 1945 1224 185 130 185 362 334 690 93 1419 . 462 . 1851 163 791 . . 1026 2329 321 2085 . 1290 588 1220 . . . . . . . . 1331 943 Thermal 47960 | 101 580 819 766 . . . 355 1114 464 835 182 310 . 157 . . . . 65 649 . . . . . . . . 1003 . 2653 969 5159 . 1305 250 7281 22943 Explosive 5490 | . 330 290 1442 275 . 294 . 1199 710 . . 56 . . . . . . . . . 370 . . . 119 405 . . . . . . . . . . . Electromagnetic 1922 | . . . 1150 71 . . . . 220 . . 192 . . . . . . 236 . . . . 53 . . . . . . . . . . . . . . Impact 1251 | . . . . 853 323 . 75 . . . . . . . . . . . . . . . . . . . . . . . . . . . . . . . Slashing 5058 | . . . . . . . . . . . . . . . . . . . . . . . . . . . . 488 2093 . 370 439 327 . 839 . 502 . Piercing . | . . . . . . . . . . . . . . . . . . . . . . . . . . . . . . . . . . . . . . . Highest Corruption 30 | . . . 6 30 3 3 4 6 2 2 2 3 . 25 25 28 28 1 1 1 1 2 . 1 1 1 4 4 12 . . . 1 . 1 1 4 4 Average Corruption 5 | . . . 5 15 2 3 3 5 2 2 2 2 . 18 25 27 10 1 1 1 1 1 . 1 1 1 3 3 7 . . . 1 . 1 1 1 3 Corruption Purged 38 | . . . . . . . . . . . . . . . . . 28 . . 1 . . . . . . . 4 . . . . . . . . 5 . Corruption Blocked . | . . . . . . . . . . . . . . . . . . . . . . . . . . . . . . . . . . . . . . . Effects 687 | . . . 68 58 14 9 29 57 11 16 7 28 . 14 12 104 19 9 4 2 1 17 . 9 2 11 1 22 70 . . . 4 . 2 4 7 76 Message Errors 151 | . . . 13 14 2 4 6 12 2 5 . 7 . 2 1 13 4 3 . 1 1 4 . 4 . 3 1 7 23 . . . 1 . . 1 . 17 Matter Fused 146 | . . . 15 11 3 . 3 13 4 2 . 6 . 6 5 29 4 1 . 1 . 4 . 2 . 2 . 3 19 . . . . . . . 2 11 Heat Flow Errors 83 | . . . 9 10 1 . 2 5 . 3 1 5 . 1 2 15 2 3 1 . . 2 . . . . . 2 6 . . . 1 . . . 3 9 Energy Discharges 97 | . . . 11 6 3 . 5 11 2 1 1 3 . 2 2 11 4 1 . . . 4 . 1 . 3 . 5 7 . . . . . . . 1 13 Parts Rejected 12 | . . . 3 . . . . . 1 . . 1 . . . 2 . . . . . 1 . 1 . . . . 2 . . . . . . . . 1 Parts Fused 8 | . . . 1 . . . 1 . . 1 . . . . . 1 . . . . . . . . . . . . 3 . . . . . . . . 1 Data Loss (minor) 87 | . . . 6 5 4 4 7 7 1 3 2 4 . 1 1 9 2 . 3 . . 1 . 1 2 2 . 3 4 . . . 1 . 2 1 . 11 Data Loss (major) 36 | . . . 4 6 1 1 1 2 . 1 . 1 . . 1 6 2 . . . . . . . . . . 2 4 . . . 1 . . . . 3 Misfires 27 | . . . 5 2 . . 2 4 . . 2 . . 2 . 8 . . . . . . . . . . . . . . . . . . . 1 . 1 Alerts 19 | . . . . 1 . . 2 2 . . 1 . . . . 4 1 1 . . . . . . . 1 . . 1 . . . . . . . . 5 Misdirections 1 | . . . . . . . . . . . . . . . . . . . . . . . . . . . . . 1 . . . . . . . . . Weapon Failures 20 | . . . 1 3 . . . 1 1 . . 1 . . . 6 . . . . . 1 . . . . . . . . . . . . . 1 1 4 Overload Shots 8 | . . . 1 . . . . . . 2 . . . . . . . 4 1 . . . . . . . . . . . . . . . . . . . Effects 1 | . . . . . . . . . . 1 . . . . . . . . . . . . . . . . . . . . . . . . . . . . Short Circuit 1 | . . . . . . . . . . 1 . . . . . . . . . . . . . . . . . . . . . . . . . . . . Overflow Damage 6137 | . 4 19 133 333 263 . 42 44 60 44 . 275 . 25 . 175 20 79 . 46 25 241 . 162 . 285 18 147 295 . 234 146 875 . 403 13 644 1087 Projectiles 5034 | . 4 18 53 50 . . 7 5 4 44 . 263 . 25 . 175 20 62 . 46 25 241 . 162 . 285 18 147 114 . 215 146 875 . 326 13 604 1087 Explosions 191 | . . 1 73 10 . . . 39 56 . . 12 . . . . . . . . . . . . . . . . . . . . . . . . . . Melee 912 | . . . 7 273 263 . 35 . . . . . . . . . . 17 . . . . . . . . . . 181 . 19 . . . 77 . 40 . Knockbacks 117 | . . . 8 11 2 . 1 2 3 7 1 8 . 2 . 9 1 2 . . 7 4 1 2 . 9 3 11 . . . . . . . . 12 11 Impact 5 | . . . 1 . 2 . 1 . . . . . . . . . . 1 . . . . . . . . . . . . . . . . . . . . Kinetic 105 | . . . 7 11 . . . 2 3 7 1 7 . 2 . 8 1 1 . . 7 4 1 2 . 6 3 9 . . . . . . . . 12 11 Secondary 7 | . . . . . . . . . . . . 1 . . . 1 . . . . . . . . . 3 . 2 . . . . . . . . . . Self-Inflicted Damage 492 | . . 14 257 . . 23 . 48 84 . . 66 . . . . . . . . . . . . . . . . . . . . . . . . . . Shots 18 | . . 1 8 . . 1 . 3 3 . . 2 . . . . . . . . . . . . . . . . . . . . . . . . . . Rammed 9 | . . . 2 . . . 3 1 . . . . . . . . . 2 . . . . 1 . . . . . . . . . . . . . . . Targets Rammed 10 | . . . 3 . . . 3 1 . . . . . . . . . 2 . . . . 1 . . . . . . . . . . . . . . . Kicked . | . . . . . . . . . . . . . . . . . . . . . . . . . . . . . . . . . . . . . . . Crushed 1 | . . . 1 . . . . . . . . . . . . . . . . . . . . . . . . . . . . . . . . . . . Highest Temperature 440 | 40 142 30 440 288 158 64 247 361 105 365 151 256 16 166 168 264 180 275 361 . 84 240 52 246 328 109 26 135 244 . 347 15 72 . 35 35 277 207 Average Temperature 63 | 17 39 18 107 69 65 20 111 96 32 101 53 66 8 46 65 64 45 60 155 . 25 33 23 53 140 31 6 21 75 . 124 7 16 . 11 12 66 57 Received Heat Transfer 3198 | . 96 198 659 18 105 74 83 587 48 258 33 165 . 12 . 138 . 35 . 9 37 63 . 133 9 27 12 8 73 . 54 18 48 18 34 . 53 93 Effects 12 | . . . 2 . . . . 1 . 1 . . . . . 1 . . 7 . . . . . . . . . . . . . . . . . . . Shutdowns 3 | . . . 2 . . . . . . 1 . . . . . . . . . . . . . . . . . . . . . . . . . . . . Energy Bleed 2 | . . . . . . . . . . . . . . . . 1 . . 1 . . . . . . . . . . . . . . . . . . . Interference 6 | . . . . . . . . . . . . . . . . . . . 6 . . . . . . . . . . . . . . . . . . . Matter Decay 1 | . . . . . . . . 1 . . . . . . . . . . . . . . . . . . . . . . . . . . . . . . Siege Activations 21 | . . . . . . . . . . . . . . . . 5 . . . . . 6 2 4 . . . 2 2 . . . . . . . . . Total Turns 159 | . . . . . . . . . . . . . . . . 42 . . . . . 45 9 29 . . . 21 13 . . . . . . . . . Longest Duration 16 | . . . . . . . . . . . . . . . . 16 . . . . . 14 7 14 . . . 14 9 . . . . . . . . . Martial Activations . | . . . . . . . . . . . . . . . . . . . . . . . . . . . . . . . . . . . . . . . Shielding Activations . | . . . . . . . . . . . . . . . . . . . . . . . . . . . . . . . . . . . . . . . Robots Disrupted 1 | . . . . . . . . . 1 . . . . . . . . . . . . . . . . . . . . . . . . . . . . . Combat Hostiles . | . . . . . . . . . . . . . . . . . . . . . . . . . . . . . . . . . . . . . . . Robots Corrupted 10 | . . . 2 3 3 . . . . . . . . . . . . 1 1 . . . . . . . . . . . . . . . . . . . Combat Hostiles 1 | . . . . . . . . . . . . . . . . . . . 1 . . . . . . . . . . . . . . . . . . . Parts Fried 20 | . . . 9 2 3 . . . . . . . . . . . . 4 1 . . . . 1 . . . . . . . . . . . . . . Impact Corruptions 21 | . . . 1 6 8 . 1 . . . . 3 . . . . . 1 . . . . . 1 . . . . . . . . . . . . . . Robots Melted 40 | . . . . . . . . 1 . 1 1 . . 1 . . . . . 5 . . . . . . . . 1 . 1 . 6 . 3 1 11 8 Combat Hostiles 32 | . . . . . . . . 1 . 1 . . . 1 . . . . . . . . . . . . . . 1 . . . 6 . 3 . 11 8 Parts Melted 118 | . . . . . . . 1 6 . 1 2 1 . 2 . . . . . 13 . 1 . . . . . . 6 . 2 1 19 . 11 . 32 20 Heat Transferred 24649 | 225 1209 1110 929 . . . 650 2123 581 1073 222 448 . 250 . . . . 50 1000 . . . . . . . . 596 . 1524 500 2900 . 650 75 3650 4884 Parts Sabotaged . | . . . . . . . . . . . . . . . . . . . . . . . . . . . . . . . . . . . . . . . Parts Stolen . | . . . . . . . . . . . . . . . . . . . . . . . . . . . . . . . . . . . . . . . Parts Stripped . | . . . . . . . . . . . . . . . . . . . . . . . . . . . . . . . . . . . . . . . Power Chain Reactions 9 | . . . 5 . . . . . 3 . . 1 . . . . . . . . . . . . . . . . . . . . . . . . . . Alert | -11 -10 -10 -8 -8 -7 -7 -7 -7 -6 -6 -6 -6 -5 -5 -5 -5 -5 -5 -5 -5 -5 -5 -4 -4 -4 -4 -3 -3 -3 -2 -2 -2 -2 -1 -1 -1 -1 -1 ------- Run | Yrd Mat Sub Mat Gar Fac Gar Fac Gar Fac Gar Fac Gar Fac Was Fac Gar Fac Ext Cet Arc Hub Gar Fac Gar Fac Gar Res Qua Frg Res Gar Tes Gar Acc Gar Acc Com Ac0 Maximum Alert Level 5 | . . . 4 4 3 3 2 4 4 5 4 5 5 2 1 5 3 1 . . 3 5 5 5 5 5 5 4 1 . 3 4 5 5 5 5 5 . Low Security (%) 25 | 100 100 . 38 . . . 51 6 . . . . . . . . 25 78 100 100 40 . . . . . . 71 87 100 3 . . . . . . . Level 1 9 | . . . 9 . . . 33 23 57 . . . . . 100 5 . 21 . . 37 . . . . . . 9 12 . 14 . . . . . . . Level 2 13 | . . . 28 . 58 23 14 29 34 . . . . 100 . 11 72 . . . 16 8 . . . . . 13 . . 30 41 . . . . . . Level 3 10 | . . . 11 31 41 76 . 30 5 15 . 1 . . . 19 1 . . . 6 3 . . . . . 2 . . 52 36 3 . . . 4 . Level 4 13 | . . . 11 68 . . . 9 2 45 100 23 . . . 39 . . . . . 2 41 8 . . . 3 . . . 21 18 . 19 49 17 . Level 5 27 | . . . . . . . . . . 38 . 74 100 . . 23 . . . . . 85 58 91 100 100 48 . . . . . 77 100 80 15 78 . High Security . | . . . . . . . . . . . . . . . . . . . . . . . . . . . 51 . . . . . . . . 34 . . Max Security . | . . . . . . . . . . . . . . . . . . . . . . . . . . . . . . . . . . . . . . . Peak Influence 4263 | 10 106 . 1283 1467 792 967 507 1205 1229 2297 1423 3216 1924 666 370 1891 992 269 198 125 767 2816 2123 3470 2406 4263 2526 1398 296 169 1061 1345 2930 1838 2375 1664 1316 . Initial 2397 | . . . 46 748 770 485 507 72 632 858 1205 996 1688 666 364 231 992 67 87 42 . 536 1478 1452 1821 1674 2397 1398 . 159 126 596 994 1757 1414 1424 1100 . Average 1024 | 2 38 . 424 1138 680 770 243 672 469 1515 1200 2169 1805 596 339 1238 461 115 134 50 266 2053 1738 2420 2023 3433 2390 174 81 155 705 854 2069 1779 2039 1558 1192 . Influence Increases 38156 | 25 613 230 1730 769 384 562 195 1173 1368 1499 452 2300 326 4 116 1740 230 617 385 256 1451 2360 1211 2198 831 2679 429 291 936 30 1175 1552 2036 121 1041 380 2939 1522 Destroy 0b10 Robot/C 13480 | . 320 160 900 380 220 280 100 580 520 540 180 900 140 . 40 660 60 220 160 60 460 820 440 600 240 880 120 40 260 . 380 580 680 40 260 40 1220 . Destroy 0b10 Robot/NC 640 | 25 55 . 110 20 20 . 15 5 65 . 10 . . . 5 10 . 25 10 40 40 5 40 . 35 . 5 10 10 . . 15 . . 5 . 60 . Destroy Leader 1734 | . 78 10 218 40 40 10 42 40 170 50 52 40 20 . 12 60 20 12 . . 118 70 102 30 52 50 22 10 30 . 40 62 20 10 40 10 154 . Allied During Kill 10676 | . . . . 20 66 72 12 15 309 417 178 815 160 . 57 485 78 257 148 100 612 895 582 630 327 930 147 59 160 . 176 611 700 50 305 50 1253 . Successful Hack 426 | . 23 . 41 7 6 . 24 . 5 . . 14 . . . 30 32 11 . . . 15 . 24 . 14 16 21 . . 14 89 14 18 8 . . . Select Force Hacks 80 | . . . . . . . . . . . . . . . . . . . . . 50 . . . . . . . . 30 . . . . . . . . Disable Machine 1815 | . 45 . 150 . 30 . . 15 240 15 30 . . . . . 30 60 15 30 105 30 15 60 45 . . 90 285 . 30 135 30 . 30 60 45 195 Anti-Garrison Action 4200 | . . . . 250 . 100 . 400 . 400 . 450 . . . 400 . . . . . 350 . 650 . 350 . . . . 350 . 250 . 250 . . . Destroy Structure 4535 | . 47 . 191 22 2 55 2 118 59 47 2 66 6 4 2 95 10 32 52 26 66 160 32 204 132 455 104 46 86 . 185 60 342 3 143 220 192 1267 Partial Spotted 90 | . . . 15 . . . . . . . . 15 . . . . . . . . . . . . . . . . . . . . . . . . . 60 Lose Combat Pursuer 480 | . 45 60 105 30 . 45 . . . 30 . . . . . . . . . . . 15 . . . . 15 15 105 . . . . . . . 15 . Influence Decreases 36720 | 25 570 183 669 453 1157 289 1058 72 1347 428 1326 507 1638 1388 306 179 1982 600 435 362 684 311 1952 803 1909 808 2206 2777 652 145 283 1287 432 1283 434 1091 1420 3269 Entered New Map 23227 | . . 22 44 403 697 209 460 32 573 368 1092 427 1528 1238 156 99 899 72 69 64 . 231 1338 623 1649 718 1866 1088 . 125 43 465 332 1173 354 951 600 3219 Time Decay 6964 | 25 559 121 435 . 410 . 538 . 574 . 214 . 60 150 110 . 368 508 286 248 274 . 254 . 160 . 150 389 369 20 . 392 . 110 . 80 160 . Lost Part 211 | . 11 40 40 50 . . . . 10 . . . 10 . . . . . . . . . . . . . . . . . . . . . . . . 50 Lost Ally 3543 | . . . . . 50 80 60 40 40 60 20 80 40 . 40 80 40 20 80 50 260 80 210 180 100 90 190 100 283 . 240 130 100 . 80 60 660 . Purge Threat 2775 | . . . 150 . . . . . 150 . . . . . . . 675 . . . 150 . 150 . . . . 1200 . . . 300 . . . . . . Squads Dispatched 86 | . 4 . 12 . 4 . 6 . 10 . 4 . 1 . . . 2 1 . . 7 . 10 . 3 . 1 4 8 1 . 6 . . . . 2 . Investigation 14 | . 4 . 4 . . . . . 1 . 1 . . . . . . . . . 1 . 1 . . . 1 . . 1 . . . . . . . . Extermination 21 | . . . . . 1 . 3 . 3 . 1 . . . . . 1 . . . 1 . . . 1 . . 3 4 . . 3 . . . . . . Reinforcement 31 | . . . 3 . 1 . 3 . 3 . 1 . 1 . . . 1 1 . . 4 . 7 . . . . 1 2 . . 2 . . . . 1 . Assault 6 | . . . 2 . . . . . . . . . . . . . . . . . . . 2 . . . . . . . . 1 . . . . 1 . Garrison 14 | . . . 3 . 2 . . . 3 . 1 . . . . . . . . . 1 . . . 2 . . . 2 . . . . . . . . . Intercept . | . . . . . . . . . . . . . . . . . . . . . . . . . . . . . . . . . . . . . . . Searches Triggered . | . . . . . . . . . . . . . . . . . . . . . . . . . . . . . . . . . . . . . . . Construction Impeded 5 | . . . 2 . . . . . 1 . . . . . . . . . . . . . 1 . . . . . 1 . . . . . . . . . Haulers Reinforced 4 | . . . . . . . 1 . . . 1 . . . . . . . . . 1 . . . . . . 1 . . . . . . . . . . Active Scanning Responses . | . . . . . . . . . . . . . . . . . . . . . . . . . . . . . . . . . . . . . . . Cargo Convoy Interrupts . | . . . . . . . . . . . . . . . . . . . . . . . . . . . . . . . . . . . . . . . Alert ID Control Effect 162 | . . . . . . . . . . . . . . . . . . . . . . . . . . . 15 19 64 . 4 11 13 4 15 7 10 . Stealth | -11 -10 -10 -8 -8 -7 -7 -7 -7 -6 -6 -6 -6 -5 -5 -5 -5 -5 -5 -5 -5 -5 -5 -4 -4 -4 -4 -3 -3 -3 -2 -2 -2 -2 -1 -1 -1 -1 -1 --------- Run | Yrd Mat Sub Mat Gar Fac Gar Fac Gar Fac Gar Fac Gar Fac Was Fac Gar Fac Ext Cet Arc Hub Gar Fac Gar Fac Gar Res Qua Frg Res Gar Tes Gar Acc Gar Acc Com Ac0 Distress Signals 47 | . 2 . 3 3 . . 1 1 1 . . . . . . . . 1 2 . 1 1 . . . . 2 1 4 . . 3 . 1 . . 20 . Communications Jammed 738 | . . . . . . . . . 3 . . . . . . . . 22 4 . 222 15 3 33 39 . 106 13 130 . . 44 . 9 . 20 75 . Distress Signals 731 | . . . . . . . . . 1 . . . . . . . . 22 4 . 220 15 . 33 39 . 106 13 130 . . 44 . 9 . 20 75 . Times Spotted 1053 | . 28 18 66 21 10 16 16 40 29 29 12 47 5 4 2 34 3 11 8 26 22 49 11 44 13 38 34 22 65 . 34 29 42 8 47 3 67 100 Peak Tracking Total 13 | . 5 6 5 6 4 7 2 6 4 4 2 8 5 1 2 8 1 2 5 2 9 8 3 5 3 5 11 4 6 . 6 6 4 4 7 2 13 7 Tactical Retreats 30 | . 3 2 7 1 . 1 . . . 2 . . . . . . . . . . . 1 . . . . 1 1 5 . . . . . . . 1 5 Traps | -11 -10 -10 -8 -8 -7 -7 -7 -7 -6 -6 -6 -6 -5 -5 -5 -5 -5 -5 -5 -5 -5 -5 -4 -4 -4 -4 -3 -3 -3 -2 -2 -2 -2 -1 -1 -1 -1 -1 ------- Run | Yrd Mat Sub Mat Gar Fac Gar Fac Gar Fac Gar Fac Gar Fac Was Fac Gar Fac Ext Cet Arc Hub Gar Fac Gar Fac Gar Res Qua Frg Res Gar Tes Gar Acc Gar Acc Com Ac0 Traps Triggered 64 | . 2 . 1 3 2 1 . 12 . 5 . 13 1 . . 7 . . . . . . . . . . 1 . 5 . 6 . 2 . 3 . . . Indirectly 1 | . . . . . . . . . . . . 1 . . . . . . . . . . . . . . . . . . . . . . . . . . Trap Hack Attempts . | . . . . . . . . . . . . . . . . . . . . . . . . . . . . . . . . . . . . . . . Triggered . | . . . . . . . . . . . . . . . . . . . . . . . . . . . . . . . . . . . . . . . Disarmed . | . . . . . . . . . . . . . . . . . . . . . . . . . . . . . . . . . . . . . . . Reprogrammed . | . . . . . . . . . . . . . . . . . . . . . . . . . . . . . . . . . . . . . . . Reused 2 | . . 2 . . . . . . . . . . . . . . . . . . . . . . . . . . . . . . . . . . . . Traps Extracted . | . . . . . . . . . . . . . . . . . . . . . . . . . . . . . . . . . . . . . . . Installed 2 | . . 2 . . . . . . . . . . . . . . . . . . . . . . . . . . . . . . . . . . . . Triggered 1 | . . 1 . . . . . . . . . . . . . . . . . . . . . . . . . . . . . . . . . . . . Most Traps Carried 1 | . . 1 . . . . . . . . . . . . . . . . . . . . . . . . . . . . . . . . . . . . Machines | -11 -10 -10 -8 -8 -7 -7 -7 -7 -6 -6 -6 -6 -5 -5 -5 -5 -5 -5 -5 -5 -5 -5 -4 -4 -4 -4 -3 -3 -3 -2 -2 -2 -2 -1 -1 -1 -1 -1 ---------- Run | Yrd Mat Sub Mat Gar Fac Gar Fac Gar Fac Gar Fac Gar Fac Was Fac Gar Fac Ext Cet Arc Hub Gar Fac Gar Fac Gar Res Qua Frg Res Gar Tes Gar Acc Gar Acc Com Ac0 Machines Disabled 197 | . 3 3 10 3 2 3 . 5 16 7 2 8 . . . 5 2 4 1 2 7 8 1 13 3 6 . 6 25 . 7 9 7 . 8 4 3 14 Max in Single Turn 4 | . 1 1 2 1 1 2 . 1 4 1 . 2 . . . 1 1 1 1 1 1 1 . 1 . 1 . 1 1 . 1 1 1 . 1 1 1 2 Garrison Access 4 | . . . . . . . . . . . . . . . . . 1 . . . . . . . . . 1 1 1 . . . . . . . . . Garrison Relay 55 | . . . . 3 . 1 . 4 . 6 . 6 . . . 4 . . . . . 5 . 5 . 5 . . . . 5 . 5 . 6 . . . Phase Generator 2 | . . . . . . 1 . . . . . 1 . . . . . . . . . . . . . . . . . . . . . . . . . . Network Hub 1 | . . . . . . . . . . . . . . . . . . . . . 1 . . . . . . . . . . . . . . . . . Machines Repaired . | . . . . . . . . . . . . . . . . . . . . . . . . . . . . . . . . . . . . . . . Machines Dismantled . | . . . . . . . . . . . . . . . . . . . . . . . . . . . . . . . . . . . . . . . Machines Sabotaged 1 | . . . . . . . . . . . . . . . . . . . . . 1 . . . . . . . . . . . . . . . . . Overloaded Fab Kills . | . . . . . . . . . . . . . . . . . . . . . . . . . . . . . . . . . . . . . . . Hacking | -11 -10 -10 -8 -8 -7 -7 -7 -7 -6 -6 -6 -6 -5 -5 -5 -5 -5 -5 -5 -5 -5 -5 -4 -4 -4 -4 -3 -3 -3 -2 -2 -2 -2 -1 -1 -1 -1 -1 --------- Run | Yrd Mat Sub Mat Gar Fac Gar Fac Gar Fac Gar Fac Gar Fac Was Fac Gar Fac Ext Cet Arc Hub Gar Fac Gar Fac Gar Res Qua Frg Res Gar Tes Gar Acc Gar Acc Com Ac0 Machines Accessed 127 | . 11 2 13 2 3 . 7 1 6 1 2 3 . . 3 3 6 13 . . 4 3 3 3 1 2 4 5 2 1 2 10 4 3 2 . 1 1 Terminals 93 | . 8 . 10 2 1 . 2 1 4 1 . 3 . . 2 3 5 12 . . 3 3 2 3 . 2 1 4 1 . 2 9 4 2 2 . 1 . Fabricators 5 | . . . . . 1 . 2 . . . 1 . . . . . . . . . . . . . . . 1 . . . . . . . . . . . Repair Stations 3 | . 1 . . . . . 1 . . . . . . . . . . . . . . . . . . . 1 . . . . . . . . . . . Recycling Units 3 | . 2 . . . . . . . . . . . . . . . . 1 . . . . . . . . . . . . . . . . . . . . Scanalyzers 4 | . . . 2 . . . 1 . 1 . . . . . . . . . . . . . . . . . . . . . . . . . . . . . Garrison Access 16 | . . . 1 . 1 . 1 . 1 . 1 . . . 1 . 1 . . . 1 . 1 . 1 . 1 1 1 1 . 1 . 1 . . . . Total Hacks 286 | . 39 5 38 3 5 . 12 2 13 1 4 6 . . 4 5 14 21 . . 5 6 7 5 2 3 12 17 2 2 6 27 6 5 2 . 1 6 Successful 133 | . 15 5 25 1 2 . 4 . 7 . 3 1 . . 2 2 6 7 . . 3 2 2 3 2 1 4 7 2 2 1 9 4 2 2 . 1 6 Failed 153 | . 24 . 13 2 3 . 8 2 6 1 1 5 . . 2 3 8 14 . . 2 4 5 2 . 2 8 10 . . 5 18 2 3 . . . . Catastrophic 40 | . 4 . 1 2 1 . 4 . 2 1 . 1 . . 2 . 3 1 . . 2 . 2 . . 1 3 4 . . 1 4 . 1 . . . . Database Lockouts . | . . . . . . . . . . . . . . . . . . . . . . . . . . . . . . . . . . . . . . . Manual 104 | . 33 . 8 . 3 . 2 . 8 . 1 . . . 2 . 5 4 1 . 4 . 5 . . . 6 4 . 1 1 16 . . . . . . Terminals 209 | . 34 . 24 3 2 . 3 2 9 1 . 6 . . 2 5 13 18 . . 4 6 6 5 . 3 1 16 1 . 6 26 6 4 2 . 1 . Fabricators 11 | . . . . . 2 . 3 . . . 3 . . . . . . . . . . . . . . . 3 . . . . . . . . . . . Repair Stations 10 | . 2 . . . . . 3 . . . . . . . . . . . . . . . . . . . 5 . . . . . . . . . . . Recycling Units 6 | . 3 . . . . . . . . . . . . . . . . 3 . . . . . . . . . . . . . . . . . . . . Scanalyzers 17 | . . . 12 . . . 2 . 3 . . . . . . . . . . . . . . . . . . . . . . . . . . . . . Garrison Access 22 | . . . 2 . 1 . 1 . 1 . 1 . . . 2 . 1 . . . 1 . 1 . 2 . 3 1 1 2 . 1 . 1 . . . . Terminal Hacks 72 | . 6 5 9 1 . . . . 2 . . 1 . . . 2 5 6 . . 1 2 1 3 . 1 1 5 1 . 1 5 4 1 2 . 1 6 Record 6 | . . 4 . . . . . . . . . . . . . . . . . . . . . . . . . . . . . 2 . . . . . . Part Schematic 5 | . 2 . . . . . . . 1 . . . . . . . 1 . . . . . . . . . . . . . . 1 . . . . . . Robot Analysis 2 | . 2 . . . . . . . . . . . . . . . . . . . . . . . . . . . . . . . . . . . . . Prototype ID Bank 5 | . . . 3 . . . . . . . . . . . . . . 1 . . . . . . . . . . . . . 1 . . . . . . Open Door 12 | . . . . 1 . . . . . . . . . . . . 1 5 . . . 1 . 1 . . . . . . . . 1 . 1 . 1 . Branch Access Points 4 | . . . 1 . . . . . . . . . . . . . 1 . . . . . . . . . 1 . . . . . . 1 . . . . Emergency Access Points 3 | . . . . . . . . . . . . . . . . 1 . . . . . . . 1 . . . . . . . . 1 . . . . . Unreport Threat 12 | . . . 1 . . . . . 1 . . . . . . . 2 . . . 1 . 1 . . . . 5 . . . 1 . . . . . . Locate Traps 1 | . 1 . . . . . . . . . . . . . . . . . . . . . . . . . . . . . . . . . . . . . Patrol Status 1 | . 1 . . . . . . . . . . . . . . . . . . . . . . . . . . . . . . . . . . . . . Hauler Manifests 1 | . . . 1 . . . . . . . . . . . . . . . . . . . . . . . . . . . . . . . . . . . Registered Components 1 | . . . 1 . . . . . . . . . . . . . . . . . . . . . . . . . . . . . . . . . . . Zone Layout 2 | . . . 2 . . . . . . . . . . . . . . . . . . . . . . . . . . . . . . . . . . . Garrison Registry 3 | . . . . . . . . . . . . . . . . . . . . . . 1 . . . . . . . . . . 1 . 1 . . . Patrol Navigation 5 | . . . . . . . . . . . . 1 . . . . . . . . . . . 1 . 1 . . . . 1 . 1 . . . . . Security Stations 1 | . . . . . . . . . . . . . . . . 1 . . . . . . . . . . . . . . . . . . . . . . Proto ID Catalog 2 | . . 1 . . . . . . . . . . . . . . . . . . . . . . . . . . 1 . . . . . . . . . Gate Test 138-A 3 | . . . . . . . . . . . . . . . . . . . . . . . . . . . . . . . . . . . . . . 3 Gate Test 138-B 1 | . . . . . . . . . . . . . . . . . . . . . . . . . . . . . . . . . . . . . . 1 Gate Test 138-C 1 | . . . . . . . . . . . . . . . . . . . . . . . . . . . . . . . . . . . . . . 1 Gate Test 138-END 1 | . . . . . . . . . . . . . . . . . . . . . . . . . . . . . . . . . . . . . . 1 Fabricator Hacks 2 | . . . . . 1 . . . . . 1 . . . . . . . . . . . . . . . . . . . . . . . . . . . Load Schematic 1 | . . . . . . . . . . . 1 . . . . . . . . . . . . . . . . . . . . . . . . . . . Build 1 | . . . . . 1 . . . . . . . . . . . . . . . . . . . . . . . . . . . . . . . . . Repair Station Hacks 3 | . 2 . . . . . 1 . . . . . . . . . . . . . . . . . . . . . . . . . . . . . . . Scan Component 2 | . 1 . . . . . 1 . . . . . . . . . . . . . . . . . . . . . . . . . . . . . . . Repair 1 | . 1 . . . . . . . . . . . . . . . . . . . . . . . . . . . . . . . . . . . . . Recycling Unit Hacks 3 | . 2 . . . . . . . . . . . . . . . . 1 . . . . . . . . . . . . . . . . . . . . Retrieve Components 3 | . 2 . . . . . . . . . . . . . . . . 1 . . . . . . . . . . . . . . . . . . . . Scanalyzer 17 | . . . 12 . . . 2 . 3 . . . . . . . . . . . . . . . . . . . . . . . . . . . . . Insert Component 7 | . . . 5 . . . 1 . 1 . . . . . . . . . . . . . . . . . . . . . . . . . . . . . Analyze 10 | . . . 7 . . . 1 . 2 . . . . . . . . . . . . . . . . . . . . . . . . . . . . . Garrison Access Hacks 20 | . . . 1 . 1 . 1 . 1 . 1 . . . 2 . 1 . . . 1 . 1 . 2 . 3 1 1 1 . 1 . 1 . . . . Unlock Access 13 | . . . 1 . 1 . 1 . 1 . 1 . . . 1 . . . . . 1 . 1 . 1 . 1 . . 1 . 1 . 1 . . . . Seal Access 4 | . . . . . . . . . . . . . . . . . 1 . . . . . . . . . 1 1 1 . . . . . . . . . Coupler Status 3 | . . . . . . . . . . . . . . . 1 . . . . . . . . . 1 . 1 . . . . . . . . . . . Unauthorized Hacks 16 | . 5 . 3 . . . . . 1 . 1 . . . . . . . . . 1 . . . . . . 1 . 1 . 3 . . . . . . Terminals 13 | . 4 . 3 . . . . . 1 . . . . . . . . . . . 1 . . . . . . 1 . . . 3 . . . . . . Botnet 12 | . 4 . 3 . . . . . 1 . . . . . . . . . . . . . . . . . . 1 . . . 3 . . . . . . Sabotage 1 | . . . . . . . . . . . . . . . . . . . . . 1 . . . . . . . . . . . . . . . . . Fabricators 1 | . . . . . . . . . . . 1 . . . . . . . . . . . . . . . . . . . . . . . . . . . Recompile 1 | . . . . . . . . . . . 1 . . . . . . . . . . . . . . . . . . . . . . . . . . . Repair Stations . | . . . . . . . . . . . . . . . . . . . . . . . . . . . . . . . . . . . . . . . Recycling Units 1 | . 1 . . . . . . . . . . . . . . . . . . . . . . . . . . . . . . . . . . . . . Reject 1 | . 1 . . . . . . . . . . . . . . . . . . . . . . . . . . . . . . . . . . . . . Scanalyzers . | . . . . . . . . . . . . . . . . . . . . . . . . . . . . . . . . . . . . . . . Garrison Access 1 | . . . . . . . . . . . . . . . . . . . . . . . . . . . . . . 1 . . . . . . . . Eject 1 | . . . . . . . . . . . . . . . . . . . . . . . . . . . . . . 1 . . . . . . . . Data Cores Recovered 2 | . 1 . . . . . . . . . . . . . . . . . . . . . . . . . . 1 . . . . . . . . . . Used . | . . . . . . . . . . . . . . . . . . . . . . . . . . . . . . . . . . . . . . . Hacking Detections 92 | . 10 . 12 1 2 . 6 1 5 1 2 3 . . 3 2 4 9 1 . 2 2 3 2 . 1 3 4 . . 2 9 1 1 . . . . Full Trace Events 8 | . 3 . 2 . . . . . 1 . . . . . . . . . . . . . 1 . . . 1 . . . . . . . . . . . Feedback Events . | . . . . . . . . . . . . . . . . . . . . . . . . . . . . . . . . . . . . . . . Feedback Blocked . | . . . . . . . . . . . . . . . . . . . . . . . . . . . . . . . . . . . . . . . Robot Schematics Acquired 3 | . . . . . . . . . . . . . . . . . . . . . . . . . . . . . 3 . . . . . . . . . Robots Built 2 | . . . . . 2 . . . . . . . . . . . . . . . . . . . . . . . . . . . . . . . . . Authchips . | . . . . . . . . . . . . . . . . . . . . . . . . . . . . . . . . . . . . . . . Time 134 | . . . . . 134 . . . . . . . . . . . . . . . . . . . . . . . . . . . . . . . . . Total Robot Build Rating 8 | . . . . . 8 . . . . . . . . . . . . . . . . . . . . . . . . . . . . . . . . . Part Schematics Acquired 50 | . 2 . 5 . . . 1 . 2 . . . . . . . 1 . . . . . . . . . . . 5 . . 34 . . . . . . Parts Built . | . . . . . . . . . . . . . . . . . . . . . . . . . . . . . . . . . . . . . . . Authchips . | . . . . . . . . . . . . . . . . . . . . . . . . . . . . . . . . . . . . . . . Time . | . . . . . . . . . . . . . . . . . . . . . . . . . . . . . . . . . . . . . . . Total Part Build Rating . | . . . . . . . . . . . . . . . . . . . . . . . . . . . . . . . . . . . . . . . Parts Repaired 1 | . 1 . . . . . . . . . . . . . . . . . . . . . . . . . . . . . . . . . . . . . Time 26 | . 26 . . . . . . . . . . . . . . . . . . . . . . . . . . . . . . . . . . . . . Parts Recycled . | . . . . . . . . . . . . . . . . . . . . . . . . . . . . . . . . . . . . . . . Recycled Matter . | . . . . . . . . . . . . . . . . . . . . . . . . . . . . . . . . . . . . . . . Retrieved Matter . | . . . . . . . . . . . . . . . . . . . . . . . . . . . . . . . . . . . . . . . Retrieved Components 22 | . 13 . . . . . . . . . . . . . . . . 9 . . . . . . . . . . . . . . . . . . . . Parts Scanalyzed 7 | . . . 5 . . . 1 . 1 . . . . . . . . . . . . . . . . . . . . . . . . . . . . . Part Schematics Acquired 7 | . . . 5 . . . 1 . 1 . . . . . . . . . . . . . . . . . . . . . . . . . . . . . Parts Damaged . | . . . . . . . . . . . . . . . . . . . . . . . . . . . . . . . . . . . . . . . Bothacking | -11 -10 -10 -8 -8 -7 -7 -7 -7 -6 -6 -6 -6 -5 -5 -5 -5 -5 -5 -5 -5 -5 -5 -4 -4 -4 -4 -3 -3 -3 -2 -2 -2 -2 -1 -1 -1 -1 -1 ------------ Run | Yrd Mat Sub Mat Gar Fac Gar Fac Gar Fac Gar Fac Gar Fac Was Fac Gar Fac Ext Cet Arc Hub Gar Fac Gar Fac Gar Res Qua Frg Res Gar Tes Gar Acc Gar Acc Com Ac0 Used RIF Installer 14 | . . . . 1 . 2 . 2 . 1 . 1 . . . 1 . . . . . 1 . 1 . 1 . . . . 1 . 1 . 1 . . . Coupler Efficiency 2 | . . . . . . 2 . . . . . . . . . . . . . . . . . . . . . . . . . . . . . . . . Hotswap 1 | . . . . . . . . 1 . . . . . . . . . . . . . . . . . . . . . . . . . . . . . . Code Merge 1 | . . . . . . . . 1 . . . . . . . . . . . . . . . . . . . . . . . . . . . . . . Command Fork 3 | . . . . . . . . . . . . 1 . . . . . . . . . . . 1 . . . . . . 1 . . . . . . . Signal Jammer 1 | . . . . . . . . . . . . . . . . 1 . . . . . . . . . . . . . . . . . . . . . . Robot Detection 1 | . . . . . . . . . . . . . . . . . . . . . . . . . . . . . . . . . 1 . . . . . Alert ID Control 1 | . . . . . . . . . . . . . . . . . . . . . . . . . . 1 . . . . . . . . . . . . Program Shield 1 | . . . . . . . . . . . . . . . . . . . . . . . . . . . . . . . . . . . 1 . . . Autoassimilate 1 | . . . . . . . . . . 1 . . . . . . . . . . . . . . . . . . . . . . . . . . . . Crosswire 1 | . . . . . . . . . . . . . . . . . . . . . . 1 . . . . . . . . . . . . . . . . Robots Hacked 323 | . . . . . 4 5 14 5 14 7 6 3 1 6 . 8 6 11 . 3 10 14 8 20 10 17 14 12 31 . 20 23 12 2 22 6 9 . Non-combat 69 | . . . . . 2 . 9 . 9 . 2 . 1 . . . 6 3 . 1 3 . 3 1 4 . 5 5 1 . 1 9 . . . 4 . . Combat 253 | . . . . . 2 5 5 5 5 7 4 3 . 6 . 8 . 8 . 2 7 14 5 19 6 17 9 7 30 . 19 14 12 2 22 2 8 . Autoassimilated 50 | . . . . . . . . . . . 1 . . . . 1 . 1 . . 2 7 2 5 3 3 1 2 9 . 2 . 6 . 5 . . . Robot Hacks Applied 298 | . . . . . 4 5 16 6 14 7 5 4 1 8 . 7 10 11 . 3 9 8 7 15 7 15 13 14 23 . 19 27 6 3 17 6 8 . parse_system 15 | . . . . . 1 . . . 1 . . 1 . 1 . . . 2 . . 1 1 . . . . . 2 2 . 2 1 . . . . . . generate_echo 1 | . . . . . . . 1 . . . . . . . . . . . . . . . . . . . . . . . . . . . . . . . find_chute 4 | . . . . . . . . . 4 . . . . . . . . . . . . . . . . . . . . . . . . . . . . . ignore_repairs 16 | . . . . . . . . . . . 1 . . . . . . 2 . . 1 . . . 1 . . 2 . . . 7 . . . 2 . . map_walls 16 | . . . . . . . 1 . 1 . . . . . . . 3 . . . 3 . 3 . 2 . 1 . . . . 1 . . . 1 . . map_earth 3 | . . . . . . . . . . . 1 . 1 . . . . . . . . . . . . . 1 . . . . . . . . . . . find_fabricator 2 | . . . . . . . 1 . . . . . . . . . 1 . . . . . . . . . . . . . . . . . . . . . drop_inventory 11 | . . . . . 1 . 3 . 3 . . . . . . . 2 . . . . . . . 1 . 1 . . . . . . . . . . . find_recycling 1 | . . . . . . . . . . . . . . . . . . . . . . . . . . . . . . . . . . . . 1 . . purge_threat 8 | . . . . . . . . . . . . . . . . . 3 . . . . . . . . . . 4 . . . 1 . . . . . . block_reporting 3 | . . . . . . . . . . . . . . . . . . . . . . . . . . . . 1 1 . . 1 . . . . . . mark_security 1 | . . . . . . . 1 . . . . . . . . . . . . . . . . . . . . . . . . . . . . . . . disable_scanner 8 | . . . . . . . . . . . . . . . . . . . . . . . . . . . . . 3 . . 5 . . . . . . ignore_targets 7 | . . . . . . . . . . . . . . 7 . . . . . . . . . . . . . . . . . . . . . . . . find_garrison 6 | . . . . . . . 1 . 1 . 1 . . . . . . . . . . . 1 . 1 . . . . . . . . 1 . . . . link_fov 2 | . . . . . . . 2 . . . . . . . . . . . . . . . . . . . . . . . . . . . . . . . scatter_targeting 7 | . . . . . . . . . . . . . . . . . . . . . . . . . . . . . 1 . 1 2 . 1 . 2 . . overload_power 2 | . . . . . . 2 . . . . . . . . . . . . . . . . . . . . . . . . . . . . . . . . amplify_resonance 11 | . . . . . . . . . . . . . . . . 2 . . . . . 3 . 1 1 2 . . . . . . . . 2 . . . disable_weapons 2 | . . . . . . . . . . . . . . . . . . . . . . . . . . . . . . . 1 . . . . . 1 . reboot_system 20 | . . . . . . . . . . . . . . . . 1 . 1 . 1 . 1 . . . 3 2 1 2 . . 2 2 . 3 . 1 . overwrite_iff 34 | . . . . . . 3 1 3 . . . . . . . 1 . . . . 2 2 . 4 . 3 2 1 6 . 1 . 1 . 3 . 1 . formatsys_low 11 | . . . . . 1 . 1 . 1 . . 1 . . . . 1 1 . 1 . . . . . 1 1 . . . 1 1 . . . . . . formatsys_high 106 | . . . . . 1 . 4 3 3 7 2 2 . . . 3 . 5 . 1 2 1 3 9 1 6 5 3 8 . 13 6 3 1 9 . 5 . formatsys_deep 1 | . . . . . . . . . . . . . . . . . . . . . . . . 1 . . . . . . . . . . . . . . Manual 1 | . . . . . . . . . . . . . . . . . . . . . . . . . . . . . . . . . . . . . 1 . Relay Couplers Released 230 | . . . . 14 . 5 . 13 . 24 . 20 . . . 18 . . . . . 21 . 26 . 21 . . . 4 22 . 19 . 23 . . . Ejected 4 | . . . . . . . . . . . . . . . . . . . . . . . . . . . . . . 4 . . . . . . . . Machine Destruction 216 | . . . . 11 . 5 . 13 . 24 . 20 . . . 15 . . . . . 21 . 22 . 21 . . . . 22 . 19 . 23 . . . Programmers 10 | . . . . 3 . . . . . . . . . . . 3 . . . . . . . 4 . . . . . . . . . . . . . . Attached 33 | . . . . . 3 1 2 2 1 4 . 1 1 . . 2 . . . . 1 2 1 2 . 1 1 1 . 1 3 . 1 . 1 . 1 . Crosswired 47 | . . . . . . . . . . . . . . . . . . . . . . 7 . 6 . 9 . . . 1 7 . 7 . 10 . . . Merged Code Value 1265 | . . . . . . . . 68 . 90 . 67 . . . 76 . . . . . 164 . 190 . 154 . . . 18 163 . 189 . 86 . . . Fabnet Peak Effective % . | . . . . . . . . . . . . . . . . . . . . . . . . . . . . . . . . . . . . . . . Robots Rewired 45 | . . . . 3 . . . . . 2 . 8 . . . 6 . 7 . . . 3 . 1 . . . . . . 6 3 . . 6 . . . Allies Hacked 17 | . . . . . . . 1 . 1 . . 1 . . . 1 . . . . 1 1 . 2 . . . 2 3 . . 4 . . . . . . Hacks Repelled . | . . . . . . . . . . . . . . . . . . . . . . . . . . . . . . . . . . . . . . . Allies | -11 -10 -10 -8 -8 -7 -7 -7 -7 -6 -6 -6 -6 -5 -5 -5 -5 -5 -5 -5 -5 -5 -5 -4 -4 -4 -4 -3 -3 -3 -2 -2 -2 -2 -1 -1 -1 -1 -1 -------- Run | Yrd Mat Sub Mat Gar Fac Gar Fac Gar Fac Gar Fac Gar Fac Was Fac Gar Fac Ext Cet Arc Hub Gar Fac Gar Fac Gar Res Qua Frg Res Gar Tes Gar Acc Gar Acc Com Ac0 Total Allies 323 | . . . . 3 4 3 6 7 4 9 3 10 . 1 . 12 1 25 5 2 7 14 6 24 7 15 13 8 29 . 32 14 13 1 33 . 12 . Largest Group 48 | . . . . 3 5 5 3 5 7 14 12 17 17 15 14 16 16 38 35 33 33 26 28 28 30 31 23 13 14 . 18 21 25 26 48 39 38 . Highest-Rated Group 3298 | . . . . 95 157 148 78 211 284 454 394 649 649 580 548 533 509 1392 1619 1564 1752 1385 1528 1668 1804 1991 1367 1045 1267 . 1044 1377 1641 1705 3298 2429 2356 . Highest-Rated Ally 344 | . . . . 39 39 39 32 62 62 41 41 99 89 89 89 89 49 159 159 159 142 142 142 142 142 142 142 344 344 . 69 152 152 152 219 119 119 . Total Orders 254 | . . . . 2 1 . . 18 16 15 5 19 2 5 . 15 5 7 7 6 2 2 3 25 4 26 5 9 13 . 13 4 12 . 7 . 5 1 STAY 88 | . . . . 1 . . . 7 4 4 . 6 . . . 4 3 3 2 2 1 . . 9 3 11 . 3 6 . 6 1 6 . 3 . 3 . ROAM 2 | . . . . . . . . . . . . . . . . . . . . . . . . . . 1 1 . . . . . . . . . . . FOLLOW 71 | . . . . 1 . . . 3 5 3 . 3 . . . 4 2 1 4 4 . . . 9 1 9 . 3 6 . 5 2 6 . . . . . GUARD 3 | . . . . . . . . . . . . . . . . . . . . . . . . . . . . 1 . . . . . . . . 2 . AID 89 | . . . . . 1 . . 8 7 8 5 10 2 5 . 7 . 3 1 . 1 2 3 7 . 5 4 2 1 . 2 1 . . 4 . . . RETURN 1 | . . . . . . . . . . . . . . . . . . . . . . . . . . . . . . . . . . . . . . 1 Ally Attacks 2949 | . . . . 10 42 36 12 17 83 69 37 116 31 68 9 85 9 51 46 24 162 98 191 131 77 155 120 86 297 . 72 192 143 25 114 43 298 . Total Damage 105120 | . . . . 249 750 780 291 414 2989 2488 1324 4076 785 2663 317 2608 262 1532 984 643 6039 3829 5098 4297 2657 5791 4597 2828 11748 . 2156 8365 5924 911 4817 1536 11372 . Kills 586 | . . . . 3 9 10 3 4 24 18 8 29 7 5 3 27 2 11 9 4 28 26 31 20 20 37 18 19 67 . 4 34 22 7 22 9 46 . Allies Corrupted 25 | . . . . . . . . . 1 . . . . . 2 2 . . . . 4 . . . 2 1 . 1 7 . . . 1 . . . 4 . Allies Melted 3 | . . . . . . . . . . 1 . . . . . . . . . . . . . . 1 . . . . . . . . . . 1 . . Intel | -11 -10 -10 -8 -8 -7 -7 -7 -7 -6 -6 -6 -6 -5 -5 -5 -5 -5 -5 -5 -5 -5 -5 -4 -4 -4 -4 -3 -3 -3 -2 -2 -2 -2 -1 -1 -1 -1 -1 ------- Run | Yrd Mat Sub Mat Gar Fac Gar Fac Gar Fac Gar Fac Gar Fac Was Fac Gar Fac Ext Cet Arc Hub Gar Fac Gar Fac Gar Res Qua Frg Res Gar Tes Gar Acc Gar Acc Com Ac0 Active Infowar (turns) 14290 | 18 1015 2454 1855 . 927 27 940 71 1696 98 430 804 129 308 229 568 505 646 . . . . 442 526 . . . . 505 51 46 . . . . . . . Terrain 1121 | . . . 1121 . . . . . . . . . . . . . . . . . . . . . . . . . . . . . . . . . . . Traps 1 | . . . . . . . . . . . . 1 . . . . . . . . . . . . . . . . . . . . . . . . . . Seismic 12408 | 18 1015 2454 1821 . 927 27 940 71 1656 98 430 2 129 308 229 365 505 646 . . . . 264 . . . . . 406 51 46 . . . . . . . Jamming 1864 | . . . . . . . . . 40 . . 801 . . . 203 . . . . . . 178 526 . . . . 116 . . . . . . . . . Robot Analysis Total 2 | . 2 . . . . . . . . . . . . . . . . . . . . . . . . . . . . . . . . . . . . . Derelict Logs Recovered 1 | . . 1 . . . . . . . . . . . . . . . . . . . . . . . . . . . . . . . . . . . . Drone Launches 1 | . . . . . . . . . . . . . . . . . . . . . . . . . . . . . . . . . . . . . . 1 Drone Recoveries 1 | . . . . . . . . . . . . . . . . . . . . . . . . . . . . . . . . . . . . . . 1 Exploration | -11 -10 -10 -8 -8 -7 -7 -7 -7 -6 -6 -6 -6 -5 -5 -5 -5 -5 -5 -5 -5 -5 -5 -4 -4 -4 -4 -3 -3 -3 -2 -2 -2 -2 -1 -1 -1 -1 -1 ------------- Run | Yrd Mat Sub Mat Gar Fac Gar Fac Gar Fac Gar Fac Gar Fac Was Fac Gar Fac Ext Cet Arc Hub Gar Fac Gar Fac Gar Res Qua Frg Res Gar Tes Gar Acc Gar Acc Com Ac0 Turns Passed 49875 | 111 2586 4111 4160 1430 991 517 1530 1990 1745 1366 453 1710 129 308 229 1988 853 1518 631 634 649 1566 554 2363 327 1569 627 1245 2042 51 1274 926 934 230 897 261 1947 3423 Spaces Moved 25960 | 27 964 1159 1394 532 373 188 543 687 809 658 239 865 66 137 119 936 314 769 301 254 340 756 264 1028 162 756 318 636 1392 55 1306 891 854 149 664 153 1555 3347 Core . | . . . . . . . . . . . . . . . . . . . . . . . . . . . . . . . . . . . . . . . Treads 11740 | . 337 1159 1156 386 373 188 543 687 298 2 . 12 . . . 157 314 769 301 254 340 756 264 1028 162 756 318 636 544 . . . . . . . . . Legs 10106 | 27 257 . . . . . . . . . . . . . . . . . . . . . . . . . . . 848 55 1306 891 854 149 664 153 1555 3347 Wheels 4114 | . 370 . 238 146 . . . . 511 656 239 853 66 137 119 779 . . . . . . . . . . . . . . . . . . . . . . Hover . | . . . . . . . . . . . . . . . . . . . . . . . . . . . . . . . . . . . . . . . Flight . | . . . . . . . . . . . . . . . . . . . . . . . . . . . . . . . . . . . . . . . Fastest Speed 80 | 120 120 320 175 190 240 247 241 247 145 160 160 145 175 175 175 160 160 160 160 160 160 160 160 160 160 160 160 160 80 80 80 80 80 80 80 80 80 80 Average Speed 155 | 120 225 327 236 226 240 247 246 247 188 160 160 164 175 175 175 175 160 160 160 160 160 160 169 189 161 161 164 160 111 80 80 80 80 80 80 80 89 83 Slowest Speed 410 | 120 320 340 255 320 247 247 247 247 247 410 160 410 175 175 175 320 160 160 160 160 160 160 245 245 245 245 245 160 190 80 80 80 80 80 80 80 190 190 Overloaded Moves . | . . . . . . . . . . . . . . . . . . . . . . . . . . . . . . . . . . . . . . . Propulsion Burnouts . | . . . . . . . . . . . . . . . . . . . . . . . . . . . . . . . . . . . . . . . Robots Hopped 1 | . . . . . . . . . . . . . . . . . . . 1 . . . . . . . . . . . . . . . . . . . Potential Cave-ins 45 | . . . . . . . . . . . . . . . . . . . . . . . . . . . . . 39 . 6 . . . . . . . Cave-ins Triggered 1 | . . . . . . . . . . . . . . . . . . . . . . . . . . . . . 1 . . . . . . . . . Teleports 3 | . . . . . . . . . . . . . . . . . . . . . . . . . . . . . 1 . . . . . . . 1 1 Exploration Rate (%) 51 | 4 99 61 80 63 9 38 23 79 31 66 10 94 3 97 4 83 11 85 78 84 39 80 9 95 8 74 17 68 35 3 90 86 83 6 78 4 39 94 Regions Visited 38 Branch Regions 10 Pre-discovered Areas 2 | . . 2 . . . . . . . . . . . . . . . . . . . . . . . . . . . . . . . . . . . . Known Exits Taken 15 | . . . 1 . 1 . 1 . 1 . 1 . . . 1 . 1 . . . 1 . 1 . 1 . 1 . . 1 . 1 . 1 . 1 . . Unknown Exits Taken 9 | 1 1 1 . . . . . . . . . . . . . . . 1 1 1 . . . . . . . 1 1 . . . . . . . 1 . Scrap Searched 3 | . . 3 . . . . . . . . . . . . . . . . . . . . . . . . . . . . . . . . . . . . Spaces Dug 190 | . 14 2 5 2 . . 2 . 11 1 2 . 1 . . . 1 13 18 4 4 1 . . 7 7 1 9 3 . 2 7 . 1 28 21 19 4 Terrain Destroyed 1407 | . 49 25 210 12 . 50 2 96 55 1 2 73 3 2 1 26 3 15 18 9 8 31 3 9 7 29 35 19 5 . 35 12 48 1 39 37 105 332 Melee 18 | . . 2 4 2 . . 2 . 2 . . . . . . . . . . . . . . . . . . . 1 . . . . 1 . . 4 . Projectile 661 | . 16 4 38 . . . . 2 16 1 2 5 3 2 1 26 3 15 18 9 8 11 3 9 7 16 5 19 4 . 35 12 48 . 39 37 36 211 AOE 688 | . 33 19 168 10 . 50 . 94 37 . . 68 . . . . . . . . . 20 . . . 13 30 . . . . . . . . . 62 84 Terrain Rammed . | . . . . . . . . . . . . . . . . . . . . . . . . . . . . . . . . . . . . . . . Walls Destroyed . | . . . . . . . . . . . . . . . . . . . . . . . . . . . . . . . . . . . . . . . Machines Disabled . | . . . . . . . . . . . . . . . . . . . . . . . . . . . . . . . . . . . . . . . Actions | -11 -10 -10 -8 -8 -7 -7 -7 -7 -6 -6 -6 -6 -5 -5 -5 -5 -5 -5 -5 -5 -5 -5 -4 -4 -4 -4 -3 -3 -3 -2 -2 -2 -2 -1 -1 -1 -1 -1 --------- Run | Yrd Mat Sub Mat Gar Fac Gar Fac Gar Fac Gar Fac Gar Fac Was Fac Gar Fac Ext Cet Arc Hub Gar Fac Gar Fac Gar Res Qua Frg Res Gar Tes Gar Acc Gar Acc Com Ac0 Total 33430 | 82 1206 1345 2011 651 451 225 678 870 975 877 298 1091 75 186 138 1180 646 1005 422 443 410 1054 360 1344 215 1050 396 822 1751 62 1508 1079 1078 256 986 287 2080 3837 Wait 3261 | 39 93 49 229 1 18 3 34 28 51 91 8 57 . 11 11 116 275 161 67 130 29 178 64 197 31 205 30 90 74 . 76 48 124 95 223 95 199 31 Move 25923 | 26 963 1158 1394 531 373 187 543 686 808 657 238 864 66 136 119 935 313 768 298 253 340 755 264 1026 161 755 317 635 1390 53 1305 890 852 149 663 152 1554 3346 Hop 1 | . . . . . . . . . . . . . . . . . . . 1 . . . . . . . . . . . . . . . . . . . Pick Up 327 | 3 26 20 50 5 9 3 7 6 14 4 4 9 . 4 1 7 7 . 3 3 1 10 2 3 . 2 . 13 36 1 7 7 2 . 4 . 31 23 Fast Attach 193 | . 5 . 18 5 1 . 5 1 4 1 11 11 2 3 2 3 8 4 8 4 . 9 1 3 . . 2 5 17 1 1 18 . . . . 11 29 Attach 140 | 1 2 4 12 5 2 1 1 5 3 . . 4 2 . . 2 3 . . . 1 1 1 2 . . 2 1 17 3 . . 2 2 . . 27 34 Detach 64 | . . . 6 . . . . 1 . . . 4 . . . . 1 . 1 . . . . 2 . . 1 1 7 3 . 2 . 1 . . 13 21 Swap 583 | . 23 31 94 23 15 11 24 24 13 21 5 11 . 6 . 13 9 11 7 6 2 4 6 11 6 9 7 13 39 . 21 24 9 4 10 7 32 32 Drop 437 | . 10 16 62 2 13 3 13 5 21 5 16 20 1 7 3 10 9 4 11 7 2 18 2 3 . 1 3 11 44 . 7 26 2 . 1 . 38 41 Fire 2155 | 13 84 50 139 40 15 16 45 91 59 56 16 60 4 19 2 78 21 55 26 40 35 79 19 94 16 71 34 50 71 . 81 55 79 4 65 33 164 276 Melee 162 | . . 15 4 16 4 1 3 . 2 . . . . . . . . . . . . . . . . . . 3 52 . 10 9 7 1 20 . 11 4 Ram . | . . . . . . . . . . . . . . . . . . . . . . . . . . . . . . . . . . . . . . . Kick . | . . . . . . . . . . . . . . . . . . . . . . . . . . . . . . . . . . . . . . . Crush 10 | . . . 3 . . . 3 1 . . . . . . . . . 2 . . . . 1 . . . . . . . . . . . . . . . Escape Stasis 135 | . . . . 6 . . . 22 . 33 . 46 . . . 16 . . . . . . . . . 6 . . 4 1 . . 1 . . . . . Rewire 37 | . . . . 17 1 . . . . 9 . 5 . . . . . . . . . . . 3 1 1 . . . . . . . . . . . . Trap 2 | . . 2 . . . . . . . . . . . . . . . . . . . . . . . . . . . . . . . . . . . . Miscellaneous . | . . . . . . . . . . . . . . . . . . . . . . . . . . . . . . . . . . . . . . . Route ------- -11/Scrapyard -10/Materials (discovered 5 exits: [*Mat x3] / [*Min] / *Sub) -10/Subcaves (discovered 3 exits: *Mat x2 / [*Rec]) -8/Materials (discovered 3 exits: *Fac x2 / Gar) -8/Garrison (discovered 2 exits: *Fac x2) -7/Factory -7/Garrison -7/Factory (discovered 2 exits: *Fac / Gar) -7/Garrison (discovered 4 exits: *Fac x3 / [*Fac]) -6/Factory (discovered 3 exits: [*Fac] / [*Low] / Gar) -6/Garrison (discovered 2 exits: *Fac x2) -6/Factory (discovered 2 exits: [*Low] / Gar) -6/Garrison (discovered 4 exits: [*Fac x3] / [*Fac]) -5/Factory -5/Waste -5/Factory -5/Garrison (discovered 3 exits: *Fac x3) -5/Factory (discovered 4 exits: Upp x2 / *Ext x2) -5/Extension (discovered 2 exits: *Fac / *Cet) -5/Cetus (discovered 2 exits: *Fac / [*Arc]) -5/Archives (discovered 3 exits: *Fac / *Hub x2) -5/Hub_04(d) (discovered 3 exits: *Fac x2 / Gar) -5/Garrison (discovered 3 exits: *Fac x3) -4/Factory -4/Garrison (discovered 3 exits: *Fac x3) -4/Factory -4/Garrison (discovered 3 exits: *Res x3) -3/Research (discovered 4 exits: *Res / Arm / *Qua x2) -3/Quarantine (discovered 3 exits: *Res / [*Sec] / *Frg) -3/Protoforge -2/Research -2/Garrison (discovered 3 exits: *Tes x3) -2/Testing (discovered 2 exits: *Acc / Gar) -2/Garrison (discovered 3 exits: *Acc x3) -1/Access (discovered 2 exits: Com / Gar) -1/Garrison (discovered 3 exits: [*Acc x3]) -1/Access -1/Command (discovered 3 exits: [*Sur x2] / *Ac0) -1/Access_0 0b11 Command History --------- Turn | Location | Event 16 | -11/Scrapyard | Discovered new exit (range 3) 112 | -11/Scrapyard | Entered Materials 306 | -10/Materials | Build established: Mutant 420 | -10/Materials | Discovered new exit (range 15) 632 | -10/Materials | Discovered new exit (range 16) 1020 | -10/Materials | Discovered new exit (range 16) 1178 | -10/Materials | Discovered new exit (range 15) 1291 | -10/Materials | Discovered new exit (range 11) 1766 | -10/Materials | Repaired Lgt. Treads 2698 | -10/Materials | Entered Subcaves 2731 | -10/Subcaves | Shifting Twisted Machinery released Sub. Machine Gun 2975 | -10/Subcaves | Visited Clippyterm 2985 | -10/Subcaves | Learned location of Deep Caves (-7) 2985 | -10/Subcaves | Learned Factory fabricator intel 3399 | -10/Subcaves | Shifting Twisted Machinery released Spk. Treads 4250 | -10/Subcaves | Discovered new exit (range 9) 4417 | -10/Subcaves | Shifting Twisted Machinery released Mak. Laser 5137 | -10/Subcaves | Shifting Twisted Machinery released Shrapnel Trap 5146 | -10/Subcaves | Discovered new exit (range 14) 5396 | -10/Subcaves | Discovered new exit (range 9) 5698 | -10/Subcaves | Core integrity fell below 50% 5962 | -10/Subcaves | Visited 4L-MR0's lab 6035 | -10/Subcaves | Lost 4 parts (1p1n1u1w) 6074 | -10/Subcaves | Found Gun Armor 6809 | -10/Subcaves | Entered Materials 6809 | -8/Materials | Evolved 4 slots: Propulsion x2, Utility x2 7114 | -8/Materials | Build established: Scavenger-Mutant 8042 | -8/Materials | Discovered new exit (range 5) 8198 | -8/Materials | Build established: Mutant 8398 | -8/Materials | Destroyed 8 combat bots 9111 | -8/Materials | Build established: Scavenger-Mutant 10009 | -8/Materials | First assault squad dispatched 10383 | -8/Materials | Garrison activated, responded to threat 10515 | -8/Materials | Destroyed 7 combat bots 10789 | -8/Materials | Discovered new exit (range 12) 10969 | -8/Materials | Identified exit to Garrison 10969 | -8/Materials | Entered Garrison 11078 | -8/Garrison | Triggered checkpoint 11220 | -8/Garrison | Discovered new exit (range 14) 11303 | -8/Garrison | Triggered checkpoint 11311 | -8/Garrison | Core integrity fell below 50% 11336 | -8/Garrison | System corruption reached 10% 11709 | -8/Garrison | Garrison Relay disabled 11851 | -8/Garrison | Triggered checkpoint 11955 | -8/Garrison | Triggered checkpoint 12060 | -8/Garrison | Discovered new exit (range 10) 12169 | -8/Garrison | Triggered checkpoint 12218 | -8/Garrison | Installed Relay Interface Framework 12283 | -8/Garrison | Garrison Relay disabled 12399 | -8/Garrison | System corruption reached 30% 12399 | -8/Garrison | Entered Factory 12399 | -7/Factory | Accompanied by 3 allies 12399 | -7/Factory | Evolved 2 slots: Utility x2 12400 | -7/Factory | Loaded intel: 6 fabricator locations 12840 | -7/Factory | Fabricated Y-54 Guardian? 13220 | -7/Factory | Found Powered Armor 13223 | -7/Factory | Garrison activated, responded to threat 13390 | -7/Factory | Identified exit to Garrison 13390 | -7/Factory | Entered Garrison 13390 | -7/Garrison | Accompanied by 4 allies 13490 | -7/Garrison | Triggered checkpoint 13497 | -7/Garrison | Triggered checkpoint 13518 | -7/Garrison | Triggered checkpoint 13558 | -7/Garrison | Lost 4 allies 13594 | -7/Garrison | Expanded RIF knowledge: Coupler Efficiency 13612 | -7/Garrison | Build established: Bothacker-Mutant 13632 | -7/Garrison | Triggered checkpoint 13729 | -7/Garrison | Expanded RIF knowledge: Coupler Efficiency 13777 | -7/Garrison | Phase Generator disabled 13804 | -7/Garrison | Garrison Relay disabled 13860 | -7/Garrison | Discovered new exit (range 8) 13907 | -7/Garrison | Entered Factory 14562 | -7/Factory | Discovered new exit (range 16) 14896 | -7/Factory | Build established: Mutant 15437 | -7/Factory | Identified exit to Garrison 15437 | -7/Factory | Entered Garrison 15437 | -7/Garrison | Accompanied by 2 allies 15503 | -7/Garrison | Expanded RIF knowledge: Hotswap 15661 | -7/Garrison | Triggered checkpoint 15726 | -7/Garrison | Expanded RIF knowledge: Code Merge 15785 | -7/Garrison | Garrison Relay disabled 15819 | -7/Garrison | Triggered checkpoint 16025 | -7/Garrison | Triggered checkpoint 16041 | -7/Garrison | Triggered checkpoint 16273 | -7/Garrison | Triggered checkpoint 16374 | -7/Garrison | Discovered new exit (range 10) 16423 | -7/Garrison | Triggered checkpoint 16451 | -7/Garrison | Garrison Relay disabled 16723 | -7/Garrison | Triggered checkpoint 16789 | -7/Garrison | Garrison Relay disabled 16809 | -7/Garrison | Triggered checkpoint 16887 | -7/Garrison | Discovered new exit (range 5) 16986 | -7/Garrison | Discovered new exit (range 14) 17253 | -7/Garrison | Triggered checkpoint 17270 | -7/Garrison | Found embedded Infiltrators 17279 | -7/Garrison | Garrison Relay disabled 17399 | -7/Garrison | Discovered new exit (range 12) 17427 | -7/Garrison | Entered Factory 17427 | -6/Factory | Accompanied by 5 allies 17427 | -6/Factory | Evolved 2 slots: Utility x1, Weapon x1 18153 | -6/Factory | Build established: Bothacker-Gunner 18771 | -6/Factory | Discovered new exit (range 10) 19104 | -6/Factory | Discovered new exit (range 14) 19158 | -6/Factory | Identified exit to Garrison 19172 | -6/Factory | Entered Garrison 19172 | -6/Garrison | Accompanied by 6 allies 19270 | -6/Garrison | Triggered checkpoint 19313 | -6/Garrison | Garrison Relay disabled 19407 | -6/Garrison | Spotted B-75 Beast 19420 | -6/Garrison | Allies destroyed B-75 Beast 19429 | -6/Garrison | Triggered checkpoint 19558 | -6/Garrison | Triggered checkpoint 19603 | -6/Garrison | Garrison Relay disabled 19646 | -6/Garrison | Garrison Relay disabled 19676 | -6/Garrison | Discovered new exit (range 6) 19692 | -6/Garrison | Build established: Commander-Gunner 19843 | -6/Garrison | Found Quantum Capacitor 19940 | -6/Garrison | Triggered checkpoint 20056 | -6/Garrison | Triggered checkpoint 20126 | -6/Garrison | Expanded RIF knowledge: Autoassimilate 20143 | -6/Garrison | Garrison Relay disabled 20274 | -6/Garrison | Triggered checkpoint 20373 | -6/Garrison | Discovered new exit (range 11) 20388 | -6/Garrison | Triggered checkpoint 20430 | -6/Garrison | Garrison Relay disabled 20443 | -6/Garrison | Garrison Relay disabled 20538 | -6/Garrison | Entered Factory 20538 | -6/Factory | Accompanied by 10 allies 20758 | -6/Factory | Build established: Bothacker-Gunner 20927 | -6/Factory | Discovered new exit (range 9) 20975 | -6/Factory | Identified exit to Garrison 20991 | -6/Factory | Entered Garrison 20991 | -6/Garrison | Accompanied by 12 allies 21013 | -6/Garrison | Phase Generator disabled 21043 | -6/Garrison | Triggered checkpoint 21091 | -6/Garrison | Garrison Relay disabled 21095 | -6/Garrison | Lost 3 allies 21237 | -6/Garrison | Triggered checkpoint 21240 | -6/Garrison | Triggered checkpoint 21261 | -6/Garrison | Triggered checkpoint 21396 | -6/Garrison | Rewired Striker 21397 | -6/Garrison | Rewired Striker 21408 | -6/Garrison | Discovered new exit (range 11) 21426 | -6/Garrison | Garrison Relay disabled 21483 | -6/Garrison | Triggered checkpoint 21508 | -6/Garrison | Discovered new exit (range 5) 21647 | -6/Garrison | Triggered checkpoint 21668 | -6/Garrison | Garrison Relay disabled 21753 | -6/Garrison | Discovered new exit (range 11) 21789 | -6/Garrison | Triggered checkpoint 21817 | -6/Garrison | Triggered checkpoint 21824 | -6/Garrison | Garrison Relay disabled 22133 | -6/Garrison | Triggered checkpoint 22154 | -6/Garrison | Garrison Relay disabled 22182 | -6/Garrison | Build established: Commander-Gunner 22257 | -6/Garrison | Discovered new exit (range 10) 22303 | -6/Garrison | Triggered checkpoint 22334 | -6/Garrison | Garrison Relay disabled 22337 | -6/Garrison | Triggered checkpoint 22384 | -6/Garrison | Expanded RIF knowledge: Command Fork 22571 | -6/Garrison | Attached Gun Armor, gained temporary slots: Weapon x2 22701 | -6/Garrison | Entered Factory 22701 | -5/Factory | Accompanied by 17 allies 22701 | -5/Factory | Evolved 2 slots: Utility x2 22830 | -5/Factory | Sucked down chute 22830 | -5/Factory | Entered Waste 22831 | -5/Waste | Met a frightened Derelict 22838 | -5/Waste | Spotted C-40 Crusher 22845 | -5/Waste | EMP discharged 22845 | -5/Waste | System corruption reached 10% 22846 | -5/Waste | Destroyed C-40 Crusher 22864 | -5/Waste | Spotted C-40 Crusher 22878 | -5/Waste | Allies destroyed C-40 Crusher 22906 | -5/Waste | Spotted C-40 Crusher 22920 | -5/Waste | Spotted C-40 Crusher 22934 | -5/Waste | Allies destroyed C-40 Crusher 22934 | -5/Waste | Allies destroyed C-40 Crusher 22934 | -5/Waste | Spotted C-40 Crusher 22945 | -5/Waste | EMP discharged 22974 | -5/Waste | Spotted C-40 Crusher 22990 | -5/Waste | Allies destroyed C-40 Crusher 23045 | -5/Waste | EMP discharged 23055 | -5/Waste | 15 allies followed down the chute 23077 | -5/Waste | Allies destroyed C-40 Crusher 23083 | -5/Waste | Discovered new exit (range 13) 23138 | -5/Waste | Entered Factory 23138 | -5/Factory | Accompanied by 14 allies 23356 | -5/Factory | Identified exit to Garrison 23367 | -5/Factory | Entered Garrison 23367 | -5/Garrison | Accompanied by 12 allies 23426 | -5/Garrison | Build established: Botlord-Tank 23439 | -5/Garrison | Triggered checkpoint 23483 | -5/Garrison | Garrison Relay disabled 23501 | -5/Garrison | Triggered checkpoint 23563 | -5/Garrison | Expanded RIF knowledge: Signal Jamming 23639 | -5/Garrison | Spotted B-75 Beast 23653 | -5/Garrison | Triggered checkpoint 23653 | -5/Garrison | Allies destroyed B-75 Beast 23703 | -5/Garrison | Triggered checkpoint 23721 | -5/Garrison | Triggered checkpoint 23759 | -5/Garrison | Discovered new exit (range 10) 23929 | -5/Garrison | Triggered checkpoint 23976 | -5/Garrison | Garrison Relay disabled 24269 | -5/Garrison | Garrison Relay disabled 24385 | -5/Garrison | Discovered new exit (range 14) 24465 | -5/Garrison | Triggered checkpoint 24483 | -5/Garrison | Triggered checkpoint 24713 | -5/Garrison | Triggered checkpoint 24830 | -5/Garrison | Learned Factory security intel 24837 | -5/Garrison | Discovered new exit (range 13) 24893 | -5/Garrison | Triggered checkpoint 24928 | -5/Garrison | Garrison Relay disabled 25071 | -5/Garrison | Found Quantum Capacitor 25355 | -5/Garrison | Entered Factory 25355 | -5/Factory | Accompanied by 15 allies 25795 | -5/Factory | Identified exit to Upper Caves 25795 | -5/Factory | Identified exit to Extension 26208 | -5/Factory | Entered Extension 26208 | -5/Extension | Accompanied by 14 allies 26458 | -5/Extension | Rescued a captive Derelict 26574 | -5/Extension | Build established: Commander-Tank 26623 | -5/Extension | Rescued a captive Derelict 26624 | -5/Extension | Rescued a captive Derelict 26897 | -5/Extension | Spotted B-75 Beast 26913 | -5/Extension | Spotted B-75 Beast 26915 | -5/Extension | Destroyed B-75 Beast 26930 | -5/Extension | Allies destroyed B-75 Beast 26975 | -5/Extension | Rescued a captive Derelict 27055 | -5/Extension | Rescued A7 27072 | -5/Extension | Rescued a captive Derelict 27126 | -5/Extension | Rescued a captive Derelict 27153 | -5/Extension | Rescued a captive Derelict 27317 | -5/Extension | Rescued a captive Derelict 27319 | -5/Extension | Rescued a captive Derelict 27447 | -5/Extension | Rescued a captive Derelict 27504 | -5/Extension | Discovered new exit (range 10) 27506 | -5/Extension | Discovered new exit (range 6) 27726 | -5/Extension | Entered Cetus 27726 | -5/Cetus | Accompanied by 34 allies (A7) 27731 | -5/Cetus | Acquired a Cetus Manufacturing Module code from A7 27743 | -5/Cetus | Spotted Cetus Guard 27744 | -5/Cetus | Spotted Cetus Guard 27749 | -5/Cetus | Allies destroyed Cetus Guard 27751 | -5/Cetus | Allies destroyed Cetus Guard 27782 | -5/Cetus | Lost 4 allies 27850 | -5/Cetus | Started Cetus Manufacturing Module 27875 | -5/Cetus | Manufactured an Enhanced Grunt 27889 | -5/Cetus | Escorted A7 to Cetus Mainframe 27900 | -5/Cetus | Manufactured an Enhanced Grunt 27925 | -5/Cetus | Manufactured an Enhanced Grunt 27950 | -5/Cetus | Manufactured an Enhanced Grunt 27975 | -5/Cetus | Manufactured an Enhanced Grunt 28016 | -5/Cetus | Discovered new exit (range 15) 28042 | -5/Cetus | Spotted Cetus Guard 28042 | -5/Cetus | Spotted Cetus Guard 28051 | -5/Cetus | Spotted Cetus Guard 28051 | -5/Cetus | Spotted Cetus Guard 28054 | -5/Cetus | Allies destroyed Cetus Guard 28057 | -5/Cetus | Destroyed Cetus Guard 28058 | -5/Cetus | Allies destroyed Cetus Guard 28059 | -5/Cetus | Allies destroyed Cetus Guard 28067 | -5/Cetus | Discovered new exit (range 15) 28076 | -5/Cetus | Met Revision 17 28357 | -5/Cetus | Entered Archives 28357 | -5/Archives | Accompanied by 33 allies (A7) 28362 | -5/Archives | Received a hacking code to weaken MAIN.C 28405 | -5/Archives | Lost 4 allies 28438 | -5/Archives | Discovered new exit (range 15) 28480 | -5/Archives | Discovered new exit (range 16) 28739 | -5/Archives | Discovered new exit (range 14) 28991 | -5/Archives | Entered Hub_04(d) 28991 | -5/Hub_04(d) | Accompanied by 30 allies 29036 | -5/Hub_04(d) | Spotted B-75 Beast 29046 | -5/Hub_04(d) | Destroyed B-75 Beast 29061 | -5/Hub_04(d) | Discovered new exit (range 10) 29164 | -5/Hub_04(d) | Lost 3 allies 29276 | -5/Hub_04(d) | Discovered new exit (range 15) 29470 | -5/Hub_04(d) | Lost 3 allies 29551 | -5/Hub_04(d) | Network Hub disabled 29561 | -5/Hub_04(d) | Spotted Lightning 29566 | -5/Hub_04(d) | Spotted Lightning 29566 | -5/Hub_04(d) | Spotted Lightning 29576 | -5/Hub_04(d) | Garrison activated, responded to threat 29582 | -5/Hub_04(d) | Allies destroyed Lightning 29585 | -5/Hub_04(d) | Allies destroyed Lightning 29593 | -5/Hub_04(d) | Allies destroyed Lightning 29609 | -5/Hub_04(d) | Lost 7 allies 29620 | -5/Hub_04(d) | Identified exit to Garrison 29636 | -5/Hub_04(d) | Spotted Lightning 29638 | -5/Hub_04(d) | Allies destroyed Lightning 29639 | -5/Hub_04(d) | Spotted Lightning 29640 | -5/Hub_04(d) | Entered Garrison 29640 | -5/Garrison | Accompanied by 18 allies 29668 | -5/Garrison | Triggered checkpoint 29703 | -5/Garrison | Garrison Relay disabled 29815 | -5/Garrison | Spotted B-75 Beast 29818 | -5/Garrison | Triggered checkpoint 29826 | -5/Garrison | Destroyed B-75 Beast 29842 | -5/Garrison | Triggered checkpoint 29871 | -5/Garrison | Lost 4 allies 29919 | -5/Garrison | Spotted B-75 Beast 29927 | -5/Garrison | Allies destroyed B-75 Beast 30017 | -5/Garrison | Discovered new exit (range 13) 30046 | -5/Garrison | Triggered checkpoint 30070 | -5/Garrison | Garrison Relay disabled 30232 | -5/Garrison | Spotted B-75 Beast 30240 | -5/Garrison | Allies destroyed B-75 Beast 30257 | -5/Garrison | Found Unknown Hackware 30257 | -5/Garrison | Identified Relay Coupler [Proto] 30260 | -5/Garrison | Found Relay Coupler [Proto] 30264 | -5/Garrison | Found Relay Coupler [Proto] 30266 | -5/Garrison | Found Relay Coupler [Proto] 30437 | -5/Garrison | Expanded RIF knowledge: Crosswire 30484 | -5/Garrison | Triggered checkpoint 30503 | -5/Garrison | Garrison Relay disabled 30535 | -5/Garrison | Discovered new exit (range 29) 30535 | -5/Garrison | Discovered new exit (range 66) 30535 | -5/Garrison | Discovered new exit (range 56) 30548 | -5/Garrison | Garrison Relay disabled 30856 | -5/Garrison | Garrison Relay disabled 30910 | -5/Garrison | Triggered checkpoint 31206 | -5/Garrison | Entered Factory 31206 | -4/Factory | Accompanied by 25 allies 31206 | -4/Factory | Evolved 2 slots: Power x1, Utility x1 31509 | -4/Factory | Lost 10 allies 31706 | -4/Factory | First assault squad dispatched 31731 | -4/Factory | Identified exit to Garrison 31752 | -4/Factory | Build established: Botlord-Tank 31760 | -4/Factory | Entered Garrison 31760 | -4/Garrison | Accompanied by 17 allies 31826 | -4/Garrison | H-XX Assembler disabled 31942 | -4/Garrison | Triggered checkpoint 31957 | -4/Garrison | Garrison Relay disabled 32069 | -4/Garrison | Spotted B-90 Cyclops 32071 | -4/Garrison | Spotted B-86 Titan 32096 | -4/Garrison | Destroyed B-90 Cyclops 32110 | -4/Garrison | Allies destroyed B-86 Titan 32164 | -4/Garrison | Rewired B-86 Titan 32289 | -4/Garrison | Triggered checkpoint 32289 | -4/Garrison | Spotted B-86 Titan 32294 | -4/Garrison | Triggered checkpoint 32306 | -4/Garrison | Triggered checkpoint 32306 | -4/Garrison | Triggered checkpoint 32318 | -4/Garrison | Allies destroyed B-86 Titan 32348 | -4/Garrison | Lost 7 allies 32449 | -4/Garrison | Expanded RIF knowledge: Command Fork 32506 | -4/Garrison | Triggered checkpoint 32528 | -4/Garrison | Garrison Relay disabled 32582 | -4/Garrison | Discovered new exit (range 14) 32786 | -4/Garrison | Rescued a captive Derelict 32959 | -4/Garrison | Discovered new exit (range 8) 33282 | -4/Garrison | Garrison Relay disabled 33310 | -4/Garrison | Triggered checkpoint 33357 | -4/Garrison | Garrison Relay disabled 33499 | -4/Garrison | Spotted B-86 Titan 33525 | -4/Garrison | Assimilated Titan 7b with formatsys_high 33607 | -4/Garrison | Build established: Commander-Tank 33637 | -4/Garrison | Discovered new exit (range 11) 33676 | -4/Garrison | Spotted B-86 Titan 33682 | -4/Garrison | Assimilated Titan 7c with formatsys_high 33776 | -4/Garrison | Triggered checkpoint 33778 | -4/Garrison | Assimilated ARC 7a with formatsys_deep 33794 | -4/Garrison | Garrison Relay disabled 34123 | -4/Garrison | Entered Factory 34123 | -4/Factory | Accompanied by 26 allies 34186 | -4/Factory | Found Exp. Targeting Computer 34316 | -4/Factory | Identified exit to Garrison 34345 | -4/Factory | Garrison activated, responded to threat 34349 | -4/Factory | Spotted B-86 Titan 34350 | -4/Factory | Autoassimilated Titan 7d with RIF 34450 | -4/Factory | Entered Garrison 34450 | -4/Garrison | Accompanied by 25 allies 34478 | -4/Garrison | Lost 4 allies 34508 | -4/Garrison | Triggered checkpoint 34516 | -4/Garrison | Garrison Relay disabled 34592 | -4/Garrison | Spotted B-86 Titan 34594 | -4/Garrison | Assimilated Titan 7e with formatsys_high 34604 | -4/Garrison | Triggered checkpoint 34612 | -4/Garrison | Triggered checkpoint 34658 | -4/Garrison | Triggered checkpoint 34658 | -4/Garrison | Spotted B-86 Titan 34660 | -4/Garrison | P-70 Sage assimilated allied Smith 6b 34660 | -4/Garrison | Assimilated Titan 7f with formatsys_high 34890 | -4/Garrison | Triggered checkpoint 34894 | -4/Garrison | Triggered checkpoint 34969 | -4/Garrison | Garrison Relay disabled 34983 | -4/Garrison | Garrison Relay disabled 35068 | -4/Garrison | Discovered new exit (range 11) 35234 | -4/Garrison | Build established: Commander-Gunner 35292 | -4/Garrison | Triggered checkpoint 35344 | -4/Garrison | Triggered checkpoint 35407 | -4/Garrison | Discovered new exit (range 11) 35465 | -4/Garrison | Garrison Relay disabled 35565 | -4/Garrison | Build established: Commander-Tank 35577 | -4/Garrison | Expanded RIF knowledge: Alert ID Control 35624 | -4/Garrison | Discovered new exit (range 9) 35656 | -4/Garrison | Triggered checkpoint 35670 | -4/Garrison | Garrison Relay disabled 36019 | -4/Garrison | Entered Research 36019 | -3/Research | Accompanied by 21 allies 36019 | -3/Research | Evolved 2 slots: Propulsion x2 36104 | -3/Research | Identified exit to Armory 36104 | -3/Research | Identified exit to Quarantine 36219 | -3/Research | Revision forces began assault on 0b10 36268 | -3/Research | Identified exit to Garrison 36269 | -3/Research | Met up with Revision 17++ 36322 | -3/Research | High security lockdown imminent 36328 | -3/Research | Build established: Botlord-Tank 36402 | -3/Research | High security lockdown engaged 36551 | -3/Research | Lost 4 allies 36553 | -3/Research | P-80 Master assimilated allied Veteran 7j 36585 | -3/Research | Discovered new exit (range 10) 36646 | -3/Research | Entered Quarantine 36646 | -3/Quarantine | Accompanied by 10 allies 36677 | -3/Quarantine | Lost 3 allies 36919 | -3/Quarantine | Found Alien Artifact 37161 | -3/Quarantine | Found Alien Artifact 37170 | -3/Quarantine | Found Alien Artifact 37199 | -3/Quarantine | Spotted Alpha 7 37200 | -3/Quarantine | Assimilated Alpha 7 with formatsys_high 37413 | -3/Quarantine | Found Alien Artifact 37489 | -3/Quarantine | Found Alien Reactor 37536 | -3/Quarantine | Discovered new exit (range 16) 37623 | -3/Quarantine | Found Alien Slashing Weapon 37639 | -3/Quarantine | Identified Sigix Broadsword 37665 | -3/Quarantine | Spotted Fortress 37666 | -3/Quarantine | Autoassimilated Fortress with RIF 37821 | -3/Quarantine | Discovered new exit (range 6) 37821 | -3/Quarantine | Discovered new exit (range 6) 37891 | -3/Quarantine | Entered Protoforge 37891 | -3/Protoforge | Accompanied by 12 allies 37933 | -3/Protoforge | Build established: Botlord-Mutant 37956 | -3/Protoforge | Spotted Hotshot 37956 | -3/Protoforge | Spotted Hotshot 37958 | -3/Protoforge | Spotted Hotshot 37959 | -3/Protoforge | Superfortress began startup sequence 37959 | -3/Protoforge | Spotted Hotshot 37959 | -3/Protoforge | Spotted Hotshot 37966 | -3/Protoforge | Assimilated Hotshot with formatsys_high 38000 | -3/Protoforge | Spotted B-86 Titan 38003 | -3/Protoforge | Assimilated Titan 8a with formatsys_high 38019 | -3/Protoforge | Spotted Hotshot 38021 | -3/Protoforge | Spotted Hotshot 38022 | -3/Protoforge | Spotted Hotshot 38022 | -3/Protoforge | Allies destroyed Hotshot 38023 | -3/Protoforge | Spotted Hotshot 38023 | -3/Protoforge | Spotted Hotshot 38031 | -3/Protoforge | Allies destroyed Hotshot 38035 | -3/Protoforge | Allies destroyed Hotshot 38039 | -3/Protoforge | Lost 5 allies 38050 | -3/Protoforge | Spotted Hotshot 38051 | -3/Protoforge | Autoassimilated Hotshot with RIF 38052 | -3/Protoforge | Spotted Hotshot 38053 | -3/Protoforge | Spotted Hotshot 38056 | -3/Protoforge | Spotted Hotshot 38065 | -3/Protoforge | Allies destroyed Hotshot 38091 | -3/Protoforge | Lost 5 allies 38095 | -3/Protoforge | Allies destroyed Hotshot 38137 | -3/Protoforge | Discovered new exit (range 4) 38153 | -3/Protoforge | Identified Dimensional Node Initializer 38153 | -3/Protoforge | Initialized slip node 38443 | -3/Protoforge | Found Prototype Device 38444 | -3/Protoforge | Identified Cep. Weapon Articulator 38462 | -3/Protoforge | Found Prototype Device 38463 | -3/Protoforge | Identified Cep. Antimissile System 38476 | -3/Protoforge | Found Cep. Weapon Articulator 38484 | -3/Protoforge | Identified Terrabomb 38484 | -3/Protoforge | Used Terrabomb 38484 | -3/Protoforge | Additional patrols dispatched to research labs 38492 | -3/Protoforge | Crushed by falling debris 38519 | -3/Protoforge | Identified Transdimensional Reconstructor 38523 | -3/Protoforge | Found Prototype Device 38602 | -3/Protoforge | Garrison activated, responded to threat 38603 | -3/Protoforge | Spotted Immortal 38603 | -3/Protoforge | Spotted Immortal 38604 | -3/Protoforge | Autoassimilated Immortal with RIF 38606 | -3/Protoforge | Spotted Decapitator 38606 | -3/Protoforge | Spotted Decapitator 38606 | -3/Protoforge | Spotted Decapitator 38606 | -3/Protoforge | Spotted Decapitator 38607 | -3/Protoforge | Autoassimilated Decapitator with RIF 38630 | -3/Protoforge | Allies destroyed Decapitator 38637 | -3/Protoforge | Allies destroyed Decapitator 38647 | -3/Protoforge | Spotted Decapitator 38647 | -3/Protoforge | Spotted Decapitator 38647 | -3/Protoforge | Spotted Decapitator 38647 | -3/Protoforge | Spotted Decapitator 38678 | -3/Protoforge | Lost 5 allies 38822 | -3/Protoforge | Found Prototype Leg 38822 | -3/Protoforge | Identified Cep. Biometal Exoskeleton 38842 | -3/Protoforge | System corruption reached 10% 38842 | -3/Protoforge | Spotted Decapitator 38843 | -3/Protoforge | Spotted Decapitator 38843 | -3/Protoforge | Spotted Decapitator 38846 | -3/Protoforge | Spotted Decapitator 38847 | -3/Protoforge | Autoassimilated Decapitator with RIF 38862 | -3/Protoforge | Identified Matter Drive 38924 | -3/Protoforge | Found Faulty Cep. Biometal Exoskeleton 38925 | -3/Protoforge | Identified Crosscalibrator 38971 | -3/Protoforge | Identified Subatomic Replicator 38971 | -3/Protoforge | Used Subatomic Replicator to replicate Faulty Cep. Biometal Exoskeleton 39044 | -3/Protoforge | Assimilated Immortal with formatsys_high 39064 | -3/Protoforge | Found Prototype Storage 39065 | -3/Protoforge | Identified Cep. NT7 Matterbank 39069 | -3/Protoforge | Found Prototype Storage 39070 | -3/Protoforge | Identified Cep. Chromion Battery 39075 | -3/Protoforge | Found Prototype Storage 39076 | -3/Protoforge | Identified Cep. Antigrav Storage Unit 39079 | -3/Protoforge | Found Cep. Matter Streamer 39179 | -3/Protoforge | Spotted Decapitator 39179 | -3/Protoforge | Spotted Decapitator 39185 | -3/Protoforge | Destroyed Decapitator 39191 | -3/Protoforge | Destroyed Decapitator 39209 | -3/Protoforge | Found Cep. Plasma Driver 39218 | -3/Protoforge | Found Cep. Helical Railcannon 39221 | -3/Protoforge | Found Prototype Ballistic Cannon 39221 | -3/Protoforge | Identified Cep. Heavy Railcannon 39234 | -3/Protoforge | Found Cep. Plasma Driver 39291 | -3/Protoforge | Spotted Decapitator 39291 | -3/Protoforge | Spotted Decapitator 39291 | -3/Protoforge | Spotted Decapitator 39291 | -3/Protoforge | Spotted Decapitator 39305 | -3/Protoforge | Destroyed Decapitator 39311 | -3/Protoforge | Destroyed Decapitator 39315 | -3/Protoforge | Destroyed Decapitator 39320 | -3/Protoforge | Destroyed Decapitator 39335 | -3/Protoforge | Found Exp. Remote Shield 39337 | -3/Protoforge | Found Cep. Phase Shift Module 39356 | -3/Protoforge | Found Cep. Rapid Grenade Launcher 39362 | -3/Protoforge | Found Faulty Cep. Phase Shift Module 39371 | -3/Protoforge | Spotted V251-l 39449 | -3/Protoforge | Spotted V454-g 39449 | -3/Protoforge | Spotted V711-e 39521 | -3/Protoforge | Spotted Immortal 39521 | -3/Protoforge | Spotted Immortal 39533 | -3/Protoforge | Assimilated Immortal with formatsys_high 39538 | -3/Protoforge | Spotted V594-t 39547 | -3/Protoforge | Found Prototype Device 39547 | -3/Protoforge | Identified Exp. Kinecellerator 39552 | -3/Protoforge | Found Cep. Networked Targeting System 39721 | -3/Protoforge | Found Prototype Power Core 39721 | -3/Protoforge | Identified Cep. Zero-point Core 39739 | -3/Protoforge | Found Cep. Zero-point Core 39797 | -3/Protoforge | Found Cep. Nanofilaments [Tensile] 39797 | -3/Protoforge | Installed Cep. Nanofilaments [Tensile], 3 resistances modified: KI +20%, TH -10%, I +20% 39810 | -3/Protoforge | Found Transdimensional Reconstructor 39918 | -3/Protoforge | Found Femtoactuators 39924 | -3/Protoforge | Warped through subspace to slip node 39933 | -3/Protoforge | Entered Research 39933 | -2/Research | Evolved 2 slots: Utility x2 39975 | -2/Research | Identified exit to Garrison 39984 | -2/Research | Entered Garrison 40018 | -2/Garrison | Triggered checkpoint 40033 | -2/Garrison | Garrison Relay disabled 40080 | -2/Garrison | Spotted B-90 Cyclops 40093 | -2/Garrison | Triggered checkpoint 40094 | -2/Garrison | Destroyed B-90 Cyclops 40105 | -2/Garrison | Triggered checkpoint 40156 | -2/Garrison | Lost 3 allies 40162 | -2/Garrison | Discovered new exit (range 11) 40190 | -2/Garrison | Triggered checkpoint 40197 | -2/Garrison | Garrison Relay disabled 40232 | -2/Garrison | Triggered checkpoint 40382 | -2/Garrison | Triggered checkpoint 40414 | -2/Garrison | Triggered checkpoint 40442 | -2/Garrison | Triggered checkpoint 40454 | -2/Garrison | Garrison Relay disabled 40468 | -2/Garrison | Expanded RIF knowledge: Command Fork 40532 | -2/Garrison | Discovered new exit (range 3) 40556 | -2/Garrison | Triggered checkpoint 40595 | -2/Garrison | Garrison Relay disabled 40612 | -2/Garrison | Triggered checkpoint 40742 | -2/Garrison | Triggered checkpoint 40820 | -2/Garrison | Garrison Relay disabled 40878 | -2/Garrison | Discovered new exit (range 9) 41258 | -2/Garrison | Entered Testing 41258 | -2/Testing | Accompanied by 14 allies 41345 | -2/Testing | Spotted Alpha 7 41346 | -2/Testing | Assimilated Alpha 7 with formatsys_high 41348 | -2/Testing | Rewired R3-3BO(L) 41349 | -2/Testing | Rewired 4W-8WJ(L) 41351 | -2/Testing | Rewired FL-L5U(L) 41385 | -2/Testing | Found Prototype Energy Cannon 41385 | -2/Testing | Identified Imp. Potential Cannon 41439 | -2/Testing | Found Prototype Device 41439 | -2/Testing | Identified 2N-1CE's Frost Array 41508 | -2/Testing | First assault squad dispatched 41537 | -2/Testing | Discovered new exit (range 5) 41556 | -2/Testing | Found Prototype Device 41556 | -2/Testing | Identified AEGIS Remote Shield 41651 | -2/Testing | Found Prototype Launcher 41651 | -2/Testing | Identified Com. Tesla Bomb Launcher 41670 | -2/Testing | Found Prototype Energy Cannon 41670 | -2/Testing | Identified Disintegrator 41737 | -2/Testing | Found Prototype Hackware 41870 | -2/Testing | Found Prototype Protection 42011 | -2/Testing | Found Prototype Energy Gun 42012 | -2/Testing | Identified Tachyon Dispersion Ray 42178 | -2/Testing | Identified exit to Garrison 42184 | -2/Testing | Entered Garrison 42184 | -2/Garrison | Accompanied by 21 allies 42204 | -2/Garrison | Triggered checkpoint 42217 | -2/Garrison | Garrison Relay disabled 42233 | -2/Garrison | Spotted Executioner 42235 | -2/Garrison | Assimilated Executioner with formatsys_high 42246 | -2/Garrison | Build established: Commander-Mutant 42343 | -2/Garrison | Spotted B-90 Cyclops 42350 | -2/Garrison | Triggered checkpoint 42355 | -2/Garrison | Allies destroyed B-90 Cyclops 42362 | -2/Garrison | Triggered checkpoint 42380 | -2/Garrison | Triggered checkpoint 42389 | -2/Garrison | Triggered checkpoint 42411 | -2/Garrison | Destroyed 9 combat bots 42440 | -2/Garrison | Garrison Relay disabled 42520 | -2/Garrison | Discovered new exit (range 14) 42550 | -2/Garrison | Discovered new exit (range 18) 42550 | -2/Garrison | Discovered new exit (range 51) 42550 | -2/Garrison | Discovered new exit (range 77) 42556 | -2/Garrison | Triggered checkpoint 42640 | -2/Garrison | Expanded RIF knowledge: Robot Detection 42672 | -2/Garrison | Triggered checkpoint 42686 | -2/Garrison | Garrison Relay disabled 42706 | -2/Garrison | Triggered checkpoint 42733 | -2/Garrison | Build established: Botlord-Mutant 42940 | -2/Garrison | Triggered checkpoint 42948 | -2/Garrison | Garrison Relay disabled 42957 | -2/Garrison | Rescued a captive Derelict 42990 | -2/Garrison | Triggered checkpoint 43018 | -2/Garrison | Garrison Relay disabled 43118 | -2/Garrison | Entered Access 43118 | -1/Access | Accompanied by 25 allies 43118 | -1/Access | Evolved 2 slots: Power x1, Utility x1 43128 | -1/Access | Identified System Mapper 43153 | -1/Access | Identified exit to Command 43233 | -1/Access | Build established: Commander-Mutant 43348 | -1/Access | Identified exit to Garrison 43348 | -1/Access | Entered Garrison 43348 | -1/Garrison | Accompanied by 25 allies 43360 | -1/Garrison | Triggered checkpoint 43382 | -1/Garrison | Triggered checkpoint 43382 | -1/Garrison | Garrison Relay disabled 43392 | -1/Garrison | Discovered new exit (range 66) 43392 | -1/Garrison | Discovered new exit (range 84) 43392 | -1/Garrison | Discovered new exit (range 57) 43481 | -1/Garrison | Expanded RIF knowledge: Program Shield 43514 | -1/Garrison | Lost 3 allies 43552 | -1/Garrison | Triggered checkpoint 43553 | -1/Garrison | Spotted B-99 Colossus 43553 | -1/Garrison | Triggered checkpoint 43555 | -1/Garrison | Assimilated Colossus 10a with formatsys_high 43566 | -1/Garrison | Triggered checkpoint 43574 | -1/Garrison | Triggered checkpoint 43595 | -1/Garrison | Triggered checkpoint 43602 | -1/Garrison | Garrison Relay disabled 43674 | -1/Garrison | Garrison Relay disabled 43690 | -1/Garrison | Triggered checkpoint 43700 | -1/Garrison | Garrison Relay disabled 43756 | -1/Garrison | Triggered checkpoint 43764 | -1/Garrison | Garrison Relay disabled 43903 | -1/Garrison | Spotted B-86 Titan 43926 | -1/Garrison | Garrison Relay disabled 43944 | -1/Garrison | Spotted B-90 Cyclops 43945 | -1/Garrison | Rewired B-86 Titan 43947 | -1/Garrison | Allies destroyed B-86 Titan 43949 | -1/Garrison | Allies destroyed B-90 Cyclops 44002 | -1/Garrison | Triggered checkpoint 44245 | -1/Garrison | Entered Access 44245 | -1/Access | Accompanied by 39 allies 44364 | -1/Access | Discovered exit to Command (range 8) 44415 | -1/Access | High security lockdown imminent 44495 | -1/Access | High security lockdown engaged 44506 | -1/Access | Entered Command 44506 | -1/Command | Accompanied by 35 allies 44718 | -1/Command | Identified SHELL Armor 44751 | -1/Command | Spotted Combat Programmer 44752 | -1/Command | Spotted Combat Programmer 44753 | -1/Command | Destroyed Combat Programmer 44754 | -1/Command | Spotted M Guard 44754 | -1/Command | Spotted M Guard 44754 | -1/Command | Destroyed Combat Programmer 44759 | -1/Command | Destroyed M Guard 44767 | -1/Command | Destroyed M Guard 44767 | -1/Command | All MAIN.C guards destroyed 44791 | -1/Command | Found Prototype Launcher 44823 | -1/Command | Met MAIN.C 44823 | -1/Command | Hacked MAIN.C using A7's code 44845 | -1/Command | Allies destroyed MAIN.C Shell 44845 | -1/Command | MAIN.C activated Command garrisons 44849 | -1/Command | 0b10 Conduit disabled 44879 | -1/Command | Allies destroyed MAIN.C 44895 | -1/Command | Spotted B-99 Colossus 44902 | -1/Command | Destroyed B-99 Colossus 44936 | -1/Command | Found Prototype Device 44952 | -1/Command | Identified Exp. System Purifier 45072 | -1/Command | Spotted Striker 45076 | -1/Command | Allies destroyed Striker 45093 | -1/Command | Destroyed 23 combat bots 45101 | -1/Command | Lost 14 allies 45183 | -1/Command | Spotted Striker 45184 | -1/Command | Destroyed Striker 45234 | -1/Command | Identified Hellfire Missile Launcher 45234 | -1/Command | Discovered new exit (range 23) 45234 | -1/Command | Discovered new exit (range 94) 45234 | -1/Command | Extracted map data and part IDs from MAIN.C's data core 45328 | -1/Command | Found Perforator 45348 | -1/Command | Found Adv. Particle Accelerator 45350 | -1/Command | Found Exp. Weapon Cycler 45354 | -1/Command | Found Vortex Chain Reactor 45359 | -1/Command | Found Zero-point Reactor 45369 | -1/Command | Found Exp. Focal Shield 45513 | -1/Command | Found Exp. Core Analyzer 45676 | -1/Command | Build established: Commander-Gunner 46036 | -1/Command | Found Imp. Powered Armor 46039 | -1/Command | Found Imp. Powered Armor 46041 | -1/Command | Found Imp. Powered Armor 46044 | -1/Command | Found Imp. Powered Armor 46385 | -1/Command | Build established: Commander-Mutant 46434 | -1/Command | Warped through subspace to slip node 46434 | -1/Command | Discovered new exit (range 4) 46453 | -1/Command | Entered Access_0 46455 | -1/Access_0 | Met Architect 46456 | -1/Access_0 | Architect warped through subspace 46467 | -1/Access_0 | Destroyed A8 46504 | -1/Access_0 | Architect warped through subspace 46544 | -1/Access_0 | Architect warped through subspace 46558 | -1/Access_0 | Subspace Access Node disabled 46571 | -1/Access_0 | Architect warped through subspace 46601 | -1/Access_0 | Architect warped through subspace 46619 | -1/Access_0 | Architect warped through subspace 46657 | -1/Access_0 | Architect warped through subspace 46662 | -1/Access_0 | A6 warped into view 46667 | -1/Access_0 | Destroyed A6 46692 | -1/Access_0 | Architect warped through subspace 46727 | -1/Access_0 | Architect warped through subspace 46736 | -1/Access_0 | Destroyed 9 combat bots 46762 | -1/Access_0 | Architect warped through subspace 46799 | -1/Access_0 | Architect warped through subspace 46818 | -1/Access_0 | Subspace Access Node disabled 46830 | -1/Access_0 | Architect warped through subspace 46867 | -1/Access_0 | Architect warped through subspace 46907 | -1/Access_0 | Architect warped through subspace 46944 | -1/Access_0 | Architect warped through subspace 46956 | -1/Access_0 | Destroyed A2 46960 | -1/Access_0 | Extracted Singularity Gate Test 138-C access codes from A2's data core 46993 | -1/Access_0 | Architect warped through subspace 47061 | -1/Access_0 | Architect warped through subspace 47063 | -1/Access_0 | A5 warped into view 47073 | -1/Access_0 | Destroyed A5 47096 | -1/Access_0 | Started Test 138-B, establishing a local singularity 47096 | -1/Access_0 | Singularity Gate disabled 47113 | -1/Access_0 | Architect warped through subspace 47151 | -1/Access_0 | Architect warped through subspace 47174 | -1/Access_0 | Build established: Mutant 47188 | -1/Access_0 | Architect warped through subspace 47217 | -1/Access_0 | Architect warped through subspace 47256 | -1/Access_0 | Found Integrated Reactor 47256 | -1/Access_0 | Installed Integrated Reactor, increased core energy generation (+10) 47261 | -1/Access_0 | Architect warped through subspace 47306 | -1/Access_0 | Architect warped through subspace 47343 | -1/Access_0 | Architect warped through subspace 47371 | -1/Access_0 | Architect warped through subspace 47422 | -1/Access_0 | Architect warped through subspace 47472 | -1/Access_0 | Architect warped through subspace 47496 | -1/Access_0 | Found Exp. Powered Armor 47519 | -1/Access_0 | Subspace Access Node disabled 47542 | -1/Access_0 | Architect warped through subspace 47548 | -1/Access_0 | A4 warped into view 47559 | -1/Access_0 | Destroyed A4 47581 | -1/Access_0 | Architect warped through subspace 47625 | -1/Access_0 | Architect warped through subspace 47668 | -1/Access_0 | Architect warped through subspace 47714 | -1/Access_0 | Architect warped through subspace 47766 | -1/Access_0 | Architect warped through subspace 47784 | -1/Access_0 | Build established: Scavenger-Mutant 47810 | -1/Access_0 | Architect warped through subspace 47851 | -1/Access_0 | Architect warped through subspace 47894 | -1/Access_0 | Architect warped through subspace 47928 | -1/Access_0 | Architect warped through subspace 47951 | -1/Access_0 | Architect warped through subspace 47972 | -1/Access_0 | Architect warped through subspace 48011 | -1/Access_0 | Architect warped through subspace 48052 | -1/Access_0 | Architect warped through subspace 48065 | -1/Access_0 | Architect warped through subspace 48078 | -1/Access_0 | Architect warped through subspace 48091 | -1/Access_0 | Found Exp. Powered Armor 48095 | -1/Access_0 | Found Exp. Powered Armor 48107 | -1/Access_0 | Architect warped through subspace 48112 | -1/Access_0 | Subspace Access Node disabled 48118 | -1/Access_0 | Destroyed Architect 48282 | -1/Access_0 | Found Hpw. Transdimensional Reconstructor 48500 | -1/Access_0 | Found Prototype Device 48500 | -1/Access_0 | Identified Adv. EM Shield 48545 | -1/Access_0 | A3 warped into view 48557 | -1/Access_0 | Destroyed A3 48568 | -1/Access_0 | Found Prototype Ballistic Gun 48569 | -1/Access_0 | Identified A3's Sniper Rifle 48901 | -1/Access_0 | Build established: Scavenger-Tank 49136 | -1/Access_0 | Found Integrated Mediator 49136 | -1/Access_0 | Installed Integrated Mediator, increased core attachment efficiency 49566 | -1/Access_0 | Found Prototype Launcher 49566 | -1/Access_0 | Identified Com. Tesla Bomb Launcher 49655 | -1/Access_0 | Found Sigix Corpse 49714 | -1/Access_0 | Found Exp. Powered Armor 49867 | -1/Access_0 | Warped through subspace to slip node 49867 | -1/Access_0 | Discovered new exit (range 8) 49876 | *** | Establishing 0b11! Last Messages --------------- 49710_ Lrn. Gatling Laser melted. 49713_ Acquired 35 matter. 49716_ Acquired 5 matter. 49740_ OWBTUG60LRLZ KUOCK01REPJ 49772_ System corrupted: Component data lost. 49788_ System corrupted: Energy discharge (-138). 49791_ Acquired Hyp. Linear Accelerator. 49846_ Dropped Exp. Biometal Leg. 49847_ Acquired Exp. Myomer Leg. 49848_ Dropped Exp. Myomer Leg. 49850_ Acquired Exp. Biometal Leg. 49856_ Dropped Exp. Biometal Leg. 49857_ Acquired Prototype Flight Unit. 49857_ Identified Cld. Field Propulsion Drive. 49858_ Dropped Cld. Field Propulsion Drive. 49861_ Acquired Exp. Biometal Leg. 49867_ Warped through subspace, drawn to slip node. 49867_ EXIT=FOUND 49870_ Acquired Exp. Biometal Leg. [Achievement: One Last FU] Map ----- +----------------------------------------------------+ | | | | | | | | | | | | | | | | | | | | | | | | | | | | | | | | | ?????????????????????????????????????????????????? | | ?????????????????????????????????????????????????? | | ?????????????????????????????????????????????????? | | ?????????????????????????????????????????????????? | | ?????????????????????????????????????????????????? | | ?????????????????????????????????????????????????? | | ????????????????????????###??????????????????????? | | ???????????????????????## ##?????????????????????? | | ???????????????????????# #?????????????????????? | | ???????????????????????# @ #?????????????????????? | | ??????????????????????## #?????????????????????? | | ??????????????????????# #?????????????????????? | | ??????????????????????# ##?????????????????????? | | ??????????????????????## #?????????????????????? | | ??????????????????????# #?????????????????????? | | ??????????????????????# ##?????????????????????? | | ??????????????????????# < #?????????????????????? | | ??????????????????????# ##?????????????????????? | | ??????????????????????## #??????????????????????? | | ???????????????????????####??????????????????????? | | ?????????????????????????????????????????????????? | | ?????????????????????????????????????????????????? | | ?????????????????????????????????????????????????? | | ?????????????????????????????????????????????????? | | ?????????????????????????????????????????????????? | | ?????????????????????????????????????????????????? | | ?????????????????????????????????????????????????? | | ?????????????????????????????????????????????????? | | ?????????????????????????????????????????????????? | | ?????????????????????????????????????????????????? | | ?????????????????????????????????????????????????? | | ?????????????????????????????????????????????????? | | ?????????????????????????????????????????????????? | | ?????????????????????????????????????????????????? | +----------------------------------------------------+ Best States ------------- Heat Dissipation 190 Coolant Potential 80 Energy Generation 96 Energy Capacity 1010 Matter Stores 300 Matter Capacity 300 Sight Range 16 Terrain Scan Range 16 Terrain Scan Density 210 Jamming Range 16 Power Amplification 20 EM Shielding 3 Armor Coverage 1370 Resistance: KI 50 Resistance: I 20 Core Shielding 20 Point Defense Rating 480 Weapon Cycling 30 Phase Shifting 25 Evasion (%) 86 Targeting Accuracy 42 Core Analysis 8 Armor Integrity Analysis 40 Recoil Reduction 6 Energy Filtering 50 Particle Charging 50 Kinecelleration 66 Offensive Hacking 20 Relay Coupler Types 10 Relay Coupler Value 380 Authchip Count 1 Item Schematics ----------------- Huge Storage Unit | -10/Materials | Hacked Hcp. Storage Unit | -10/Materials | Hacked Hardlight Generator | -8/Materials | Scanalyzed Hvy. Armor Plating | -8/Materials | Scanalyzed Seismic Detector | -8/Materials | Scanalyzed Imp. VTOL Module | -8/Materials | Scanalyzed Spk. Treads | -8/Materials | Scanalyzed Arm. Treads | -7/Factory | Scanalyzed Cargo Storage Unit | -6/Factory | Hacked Med. Reactive Plating | -6/Factory | Scanalyzed Com. HERF Cannon | -5/Factory | Hacked Gravity Flail | -3/Protoforge | Archive Centrium Medium Armor Plating | -3/Protoforge | Archive Exp. Thermal Shield | -3/Protoforge | Archive Exp. Field Recycling Unit | -3/Protoforge | Archive Lgt. Antimatter Cannon | -3/Protoforge | Archive Hvy. Dispersion Rifle | -2/Testing | Archive Tiamat Missile Launcher | -2/Testing | Archive Hds. Centrium Wheel | -2/Testing | Archive Exp. EM Shield | -2/Testing | Archive Adv. Remote Shield | -2/Testing | Archive Diametric Drive | -2/Testing | Archive Cld. Q-thruster | -2/Testing | Archive Imp. Quantum Reactor | -2/Testing | Archive Cld. Antigrav System | -2/Testing | Archive Adv. Variable Charge Gun | -2/Testing | Archive Tactical Quantum Warhead | -2/Testing | Archive Hvy. Proton Cannon | -2/Testing | Archive Exp. Shock Absorption System | -2/Testing | Archive Exp. Shield Generator | -2/Testing | Archive Singularity Reactor | -2/Testing | Archive Prc. Energy Filter | -2/Testing | Archive Hvy. Gatling Laser | -2/Testing | Archive Com. Particle Reactor | -2/Testing | Archive Enh. Nova Cannon | -2/Testing | Hacked Exp. Gyrokinetic Inverter | -2/Testing | Archive Hds. Centrium Leg | -2/Testing | Archive Molecular Scythe | -2/Testing | Archive Exp. Hacking Suite | -2/Testing | Archive Adv. Plasma Rifle | -2/Testing | Archive Hvy. Proton Missile Launcher | -2/Testing | Archive Prc. Phase Gun | -2/Testing | Archive Com. Linear Accelerator | -2/Testing | Archive Exp. System Shield | -2/Testing | Archive Enh. Biometal Leg | -2/Testing | Archive Cld. Phase Cannon | -2/Testing | Archive Vibroblade | -2/Testing | Archive Imp. Q-thruster | -2/Testing | Archive Gravity Neutralizer | -2/Testing | Archive Nanosword | -2/Testing | Archive Robot Schematics ------------------ L-61 Swordsman | -3/Protoforge | Archive R-06 Scavenger | -3/Protoforge | Archive A-15 Conveyor | -3/Protoforge | Archive Fabricated ------------ Y-54 Guardian | x2 | -7/Factory | Preloaded Repaired ---------- Lgt. Treads | 35% | -10/Materials Alien Tech Used ----------------- Sigix Broadsword Dimensional Node Initializer Terrabomb Matter Drive Subatomic Replicator Concept Nanofilaments [Tensile] Transdimensional Reconstructor Integrated Reactor Integrated Mediator High-powered Transdimensional Reconstructor Achievements -------------- Great Explorer One Last FU Origins Pwned Pyromaniac Challenges ------------ None Game ------ Seed HypercooledSapperUnit Manual? 0 Play Time 12:54:53 Cumulative 226.3 hours Start 2025.06.02 @ 17:58:29 End 2025.06.05 @ 09:31:25 Sessions 371 Manual Loads 0 Difficulty Rogue Special Mode None Game No. 33 Rogue 26 Adventurer 4 Explorer 3 Win Type 1 Total 22 Types 10/4/2/1/1/0/1/2/0/1 Lore% 67 Gallery% 82 Achievement% 73 Wizard Run 0 Options --------- Layout 0 ASCII 0 Keyboard 0 Movement Mouse Keybinds 0 Fullscreen 1 Font 18/TerminusBold Map View 76x50 Zoom Use 0% Tactical HUD 1 Map Filters NONE Filters NONE Steam X RUN: e3dd8c57-6cd1-4f71-8dd4-da9cc6e9e199